{"text_format":"1","workbook":"xlsx","n_sheets":28,"sheets":["I.","II.","III.1.","III.2.","III.3.","III.4.","IV.","V.1.","V.1a.","V.2.","V.2a.","V.3.","VI.1.","VI.2.","VI.3.","VI.4.","VI.5.","VII.1.","VII.2.","VIII.1.","IX.1.","IX.2.","X.1.","X.2.","XI.","XII.","obl","zav"],"not_rendered":{"charts":0,"images":0,"macros":1,"external_links":0,"defined_names":1,"comments":0,"pivot_tables":0},"unopened":[],"bounds":{"document_bytes":16777216,"sheet_cells":100000,"rows_first":2000,"rows_last":500,"rows_between":2000,"halvings":0,"cell_chars":16384,"cell_head_chars":4096},"cells_cut":0,"cells_raw":0,"read":"whole","date_system":"1900"}

{"sheet":"I.","index":0,"n_rows":12,"n_cols":12,"rows_kept":12,"cut":false,"hidden":false,"merged":[[2,11,6,14],[1,2,1,4],[5,1,5,3],[0,11,0,14],[1,11,1,14]]}
[{"$f":"IF(ISNA(VLOOKUP(C1,obl!A1:B28,2,FALSE))=TRUE,\"\",(VLOOKUP(C1,obl!A1:B28,2,FALSE)))","v":""},"Област:",null,null,null,null,{"$f":"IF(MID(C1,1,2)=MID(C2,1,2),\"\",\"Избери заведение с код от същата област \")","v":""},null,null,null,null,"Формуляр \"З\" - 365-О"]
[{"$f":"IF(ISNA(VLOOKUP(C2,zav!B1:C448,2,FALSE))=TRUE,\"\",(VLOOKUP(C2,zav!B1:C448,2,FALSE)))","v":""},"Лечебно заведение:",null,null,null,null,{"$f":"IF(MID(C2,1,2)=A1,\"\",\"Избраното болнично заведение е от друга област\")","v":""},null,null,null,null,"годишен"]
[null,"Година:",2023,null,null,null,null,null,null,null,null,"Представя се на РЗИ от лечебните заведения за извънболнична помощ:\n1. Амбулатории за първична медицинска помощ\n2. Амбулатории за специализирана медицинска помощ\n3. Самостоятелни медико-диагностични и медико-технически лаборатории\n4. Амбулатории за здравни грижи\n"]
[]
[]
[null,"ОТЧЕТ НА ЛЕЧЕБНИТЕ ЗАВЕДЕНИЯ ЗА ИЗВЪНБОЛНИЧНА ПОМОЩ"]
[]
[null,"Раздел І."]
[1,"Регистрирани и отчетени заведения"]
[null,null,null,null,null,"ХОРИЗОНТАЛЕН КОНТРОЛ:"]
[null,"Регистрирани заведения (брой)","Отчетени заведения (брой)","Отн. дял",null,"к.1і к.2 "]
[null,null,null,{"$f":"C12*100/B12","v":{"$error":"#DIV/0!"}},null,{"$f":"IF(B12<C12,\"грешка\",\"\")","v":""}]

{"sheet":"II.","index":1,"n_rows":138,"n_cols":34,"rows_kept":138,"cut":false,"hidden":false,"merged":[[10,1,14,1],[10,2,14,2],[11,3,14,3],[13,12,13,14],[13,15,13,17],[12,4,14,4],[12,5,14,5],[13,6,13,8],[13,9,13,11],[13,21,13,23],[10,3,10,23],[11,4,11,23],[12,6,12,23],[11,33,12,33],[11,30,12,30],[11,31,12,31],[11,32,12,32],[11,25,12,25],[11,26,12,26],[11,27,14,27],[11,28,12,28],[11,29,12,29],[13,18,13,20]]}
[{"$f":"I.!A1","v":""},"Област:",{"$f":"I.!C1","v":0}]
[{"$f":"I.!A2","v":""},"Лечебно заведение:",{"$f":"I.!C2","v":0}]
[null,"Година:",{"$f":"I.!C3","v":2023}]
[]
[]
[]
[]
[null,"Раздел ІІ."]
[2,"Персонал в края на годината"]
[null,null,null,null,null,null,null,null,null,null,null,null,null,null,null,null,null,null,null,null,null,null,null,null,null,"ХОРИЗОНТАЛЕН КОНТРОЛ:"]
[null,null,"Шиф-ър","Физически лица"]
[null,null,null,"Общо","от тях: на основен трудов договор",null,null,null,null,null,null,null,null,null,null,null,null,null,null,null,null,null,null,null,null,"к.1і к.2 ","к.2і к.3 ","к.2= к.4 +к.7+ к.10+ к.13+ к.16+к.19","к.4= к.5 +к.6","к.7= к.8 +к.9","к.10= к.11 +к.12","к.13= к.14 +к.15","к.16= к.17 +к.18","к.19= к.20 +к.21"]
[null,null,null,null,"Всич-ко","с придо-бита специ-алност","Персонал(физически лица) на основен трудов договор по възрастови групи и пол"]
[null,null,null,null,null,null,"под 35 години",null,null,"35 - 44 години",null,null,"45 - 54 години",null,null,"55 - 64 години",null,null,"65-74  години",null,null,"75+  години"]
[null,null,null,null,null,null,"общо","мъже","жени","общо","мъже","жени","общо","мъже","жени","общо","мъже","жени","общо","мъже","жени","общо","мъже","жени"]
[null,"а","б",1,2,3,4,5,6,7,8,9,10,11,12,13,14,15,16,17,18,19,20,21]
[null,"Персонал – общо (ш.002+078+081+082+096)","001",null,null,null,null,null,null,null,null,null,null,null,null,null,null,null,null,null,null,null,null,null,null,{"$f":"IF(D17<E17,\"грешка\",\"\")","v":""},{"$f":"IF(E17<F17,\"грешка\",\"\")","v":""}]
[null,"Лекари – всичко (ш.003+004)","002",null,null,null,null,null,null,null,null,null,null,null,null,null,null,null,null,null,null,null,null,null,null,{"$f":"IF(D18<E18,\"грешка\",\"\")","v":""},{"$f":"IF(E18<F18,\"грешка\",\"\")","v":""},{"$f":"IF(E18=G18+J18+M18+P18+S18+V18,\"\",\"грешка\")","v":""},{"$f":"IF(G18=H18+I18,\"\",\"грешка\")","v":""},{"$f":"IF(J18=K18+L18,\"\",\"грешка\")","v":""},{"$f":"IF(M18=N18+O18,\"\",\"грешка\")","v":""},{"$f":"IF(P18=Q18+R18,\"\",\"грешка\")","v":""},{"$f":"IF(S18=T18+U18,\"\",\"грешка\")","v":""},{"$f":"IF(V18=W18+X18,\"\",\"грешка\")","v":""}]
[null,"В първична помощ - ОПЛ","003",null,null,null,null,null,null,null,null,null,null,null,null,null,null,null,null,null,null,null,null,null,null,"","",{"$f":"IF(E19=G19+J19+M19+P19+S19+V19,\"\",\"грешка\")","v":""},{"$f":"IF(G19=H19+I19,\"\",\"грешка\")","v":""},{"$f":"IF(J19=K19+L19,\"\",\"грешка\")","v":""},{"$f":"IF(M19=N19+O19,\"\",\"грешка\")","v":""},{"$f":"IF(P19=Q19+R19,\"\",\"грешка\")","v":""},{"$f":"IF(S19=T19+U19,\"\",\"грешка\")","v":""},{"$f":"IF(V19=W19+X19,\"\",\"грешка\")","v":""}]
[null,"В специализирана помощ (ш.005+068)","004",null,null,null,null,null,null,null,null,null,null,null,null,null,null,null,null,null,null,null,null,null,null,"","","","","","","","",""]
[null,"Клинични специалности (ш.006 до 055+057 до 067)","005",null,null,null,null,null,null,null,null,null,null,null,null,null,null,null,null,null,null,null,null,null,null,"","","","","","","","",""]
[null,"Акушерство и гинекология","006",null,null,null,null,null,null,null,null,null,null,null,null,null,null,null,null,null,null,null,null,null,null,"","","","","","","","",""]
[null,"Ангиология","007",null,null,null,null,null,null,null,null,null,null,null,null,null,null,null,null,null,null,null,null,null,null,"","","","","","","","",""]
[null,"Анестезиология и интензивно лечение","008",null,null,null,null,null,null,null,null,null,null,null,null,null,null,null,null,null,null,null,null,null,null,"","","","","","","","",""]
[null,"Вътрешни болести","009",null,null,null,null,null,null,null,null,null,null,null,null,null,null,null,null,null,null,null,null,null,null,"","","","","","","","",""]
[null,"Гастроентерология","010",null,null,null,null,null,null,null,null,null,null,null,null,null,null,null,null,null,null,null,null,null,null,"","","","","","","","",""]
[null,"Гериатрична медицина","011",null,null,null,null,null,null,null,null,null,null,null,null,null,null,null,null,null,null,null,null,null,null,"","","","","","","","",""]
[null,"Гръдна хирургия","012",null,null,null,null,null,null,null,null,null,null,null,null,null,null,null,null,null,null,null,null,null,null,"","","","","","","","",""]
[null,"Детска гастроентерология","013",null,null,null,null,null,null,null,null,null,null,null,null,null,null,null,null,null,null,null,null,null,null,"","","","","","","","",""]
[null,"Детска ендокринология и болести на обмяната","014",null,null,null,null,null,null,null,null,null,null,null,null,null,null,null,null,null,null,null,null,null,null,"","","","","","","","",""]
[null,"Детска кардиология","015",null,null,null,null,null,null,null,null,null,null,null,null,null,null,null,null,null,null,null,null,null,null,"","","","","","","","",""]
[null,"Детска клинична хематология и онкология","016",null,null,null,null,null,null,null,null,null,null,null,null,null,null,null,null,null,null,null,null,null,null,"","","","","","","","",""]
[null,"Детска неврология","017",null,null,null,null,null,null,null,null,null,null,null,null,null,null,null,null,null,null,null,null,null,null,"","","","","","","","",""]
[null,"Детска нефрология и хемодиализа","018",null,null,null,null,null,null,null,null,null,null,null,null,null,null,null,null,null,null,null,null,null,null,"","","","","","","","",""]
[null,"Детска пневмология и фтизиатрия","019",null,null,null,null,null,null,null,null,null,null,null,null,null,null,null,null,null,null,null,null,null,null,"","","","","","","","",""]
[null,"Детска психиатрия","020",null,null,null,null,null,null,null,null,null,null,null,null,null,null,null,null,null,null,null,null,null,null,"","","","","","","","",""]
[null,"Детска ревматология","021",null,null,null,null,null,null,null,null,null,null,null,null,null,null,null,null,null,null,null,null,null,null,"","","","","","","","",""]
[null,"Детска хирургия","022",null,null,null,null,null,null,null,null,null,null,null,null,null,null,null,null,null,null,null,null,null,null,"","","","","","","","",""]
[null,"Ендокринология и болести на обмяната","023",null,null,null,null,null,null,null,null,null,null,null,null,null,null,null,null,null,null,null,null,null,null,"","","","","","","","",""]
[null,"Инфекциозни болести","024",null,null,null,null,null,null,null,null,null,null,null,null,null,null,null,null,null,null,null,null,null,null,"","","","","","","","",""]
[null,"Кардиология","025",null,null,null,null,null,null,null,null,null,null,null,null,null,null,null,null,null,null,null,null,null,null,"","","","","","","","",""]
[null,"Кардиохирургия","026",null,null,null,null,null,null,null,null,null,null,null,null,null,null,null,null,null,null,null,null,null,null,"","","","","","","","",""]
[null,"Клинична алергология","027",null,null,null,null,null,null,null,null,null,null,null,null,null,null,null,null,null,null,null,null,null,null,"","","","","","","","",""]
[null,"Клинична вирусология","028",null,null,null,null,null,null,null,null,null,null,null,null,null,null,null,null,null,null,null,null,null,null,"","","","","","","","",""]
[null,"Клинична имунология","029",null,null,null,null,null,null,null,null,null,null,null,null,null,null,null,null,null,null,null,null,null,null,"","","","","","","","",""]
[null,"Клинична лаборатория","030",null,null,null,null,null,null,null,null,null,null,null,null,null,null,null,null,null,null,null,null,null,null,"","","","","","","","",""]
[null,"Клинична микробиология","031",null,null,null,null,null,null,null,null,null,null,null,null,null,null,null,null,null,null,null,null,null,null,"","","","","","","","",""]
[null,"Клинична токсикология","032",null,null,null,null,null,null,null,null,null,null,null,null,null,null,null,null,null,null,null,null,null,null,"","","","","","","","",""]
[null,"Клинична фармакология и терапия","033",null,null,null,null,null,null,null,null,null,null,null,null,null,null,null,null,null,null,null,null,null,null,"","","","","","","","",""]
[null,"Клинична хематология","034",null,null,null,null,null,null,null,null,null,null,null,null,null,null,null,null,null,null,null,null,null,null,"","","","","","","","",""]
[null,"Кожни и венерически болести","035",null,null,null,null,null,null,null,null,null,null,null,null,null,null,null,null,null,null,null,null,null,null,"","","","","","","","",""]
[null,"Лицево-челюстна хирургия","036",null,null,null,null,null,null,null,null,null,null,null,null,null,null,null,null,null,null,null,null,null,null,"","","","","","","","",""]
[null,"Лъчелечение","037",null,null,null,null,null,null,null,null,null,null,null,null,null,null,null,null,null,null,null,null,null,null,"","","","","","","","",""]
[null,"Медицинска генетика","038",null,null,null,null,null,null,null,null,null,null,null,null,null,null,null,null,null,null,null,null,null,null,"","","","","","","","",""]
[null,"Медицинска онкология","039",null,null,null,null,null,null,null,null,null,null,null,null,null,null,null,null,null,null,null,null,null,null,"","","","","","","","",""]
[null,"Медицинска паразитология","040",null,null,null,null,null,null,null,null,null,null,null,null,null,null,null,null,null,null,null,null,null,null,"","","","","","","","",""]
[null,"Неврохирургия","041",null,null,null,null,null,null,null,null,null,null,null,null,null,null,null,null,null,null,null,null,null,null,"","","","","","","","",""]
[null,"Неонатология","042",null,null,null,null,null,null,null,null,null,null,null,null,null,null,null,null,null,null,null,null,null,null,"","","","","","","","",""]
[null,"Нервни болести","043",null,null,null,null,null,null,null,null,null,null,null,null,null,null,null,null,null,null,null,null,null,null,"","","","","","","","",""]
[null,"Нефрология","044",null,null,null,null,null,null,null,null,null,null,null,null,null,null,null,null,null,null,null,null,null,null,"","","","","","","","",""]
[null,"Нуклеарна медицина","045",null,null,null,null,null,null,null,null,null,null,null,null,null,null,null,null,null,null,null,null,null,null,"","","","","","","","",""]
[null,"Образна диагностика","046",null,null,null,null,null,null,null,null,null,null,null,null,null,null,null,null,null,null,null,null,null,null,"","","","","","","","",""]
[null,"Обща и клинична патология","047",null,null,null,null,null,null,null,null,null,null,null,null,null,null,null,null,null,null,null,null,null,null,"","","","","","","","",""]
[null,"Обща медицина","048",null,null,null,null,null,null,null,null,null,null,null,null,null,null,null,null,null,null,null,null,null,null,"","","","","","","","",""]
[null,"Ортопедия и травматология","049",null,null,null,null,null,null,null,null,null,null,null,null,null,null,null,null,null,null,null,null,null,null,"","","","","","","","",""]
[null,"Очни болести","050",null,null,null,null,null,null,null,null,null,null,null,null,null,null,null,null,null,null,null,null,null,null,"","","","","","","","",""]
[null,"Педиатрия","051",null,null,null,null,null,null,null,null,null,null,null,null,null,null,null,null,null,null,null,null,null,null,"","","","","","","","",""]
[null,"Пластично-възстановителна и естетична хирургия","052",null,null,null,null,null,null,null,null,null,null,null,null,null,null,null,null,null,null,null,null,null,null,"","","","","","","","",""]
[null,"Пневмология и фтизиатрия","053",null,null,null,null,null,null,null,null,null,null,null,null,null,null,null,null,null,null,null,null,null,null,"","","","","","","","",""]
[null,"Професионални болести","054",null,null,null,null,null,null,null,null,null,null,null,null,null,null,null,null,null,null,null,null,null,null,"","","","","","","","",""]
[null,"Психиатрия","055",null,null,null,null,null,null,null,null,null,null,null,null,null,null,null,null,null,null,null,null,null,null,"","","","","","","","",""]
[null," в т.ч. Наркология","056",null,null,null,null,null,null,null,null,null,null,null,null,null,null,null,null,null,null,null,null,null,null,"","","","","","","","",""]
[null,"Ревматология","057",null,null,null,null,null,null,null,null,null,null,null,null,null,null,null,null,null,null,null,null,null,null,"","","","","","","","",""]
[null,"Спешна медицина","058",null,null,null,null,null,null,null,null,null,null,null,null,null,null,null,null,null,null,null,null,null,null,"","","","","","","","",""]
[null,"Спортна медицина","059",null,null,null,null,null,null,null,null,null,null,null,null,null,null,null,null,null,null,null,null,null,null,"","","","","","","","",""]
[null,"Съдебна медицина и деонтология","060",null,null,null,null,null,null,null,null,null,null,null,null,null,null,null,null,null,null,null,null,null,null,"","","","","","","","",""]
[null,"Съдебна психиатрия","061",null,null,null,null,null,null,null,null,null,null,null,null,null,null,null,null,null,null,null,null,null,null,"","","","","","","","",""]
[null,"Съдова хирургия","062",null,null,null,null,null,null,null,null,null,null,null,null,null,null,null,null,null,null,null,null,null,null,"","","","","","","","",""]
[null,"Трансфузионна хематология","063",null,null,null,null,null,null,null,null,null,null,null,null,null,null,null,null,null,null,null,null,null,null,"","","","","","","","",""]
[null,"Урология","064",null,null,null,null,null,null,null,null,null,null,null,null,null,null,null,null,null,null,null,null,null,null,"","","","","","","","",""]
[null,"Ушно-носно-гърлени болести","065",null,null,null,null,null,null,null,null,null,null,null,null,null,null,null,null,null,null,null,null,null,null,"","","","","","","","",""]
[null,"Физикална и рехабилитационна медицина","066",null,null,null,null,null,null,null,null,null,null,null,null,null,null,null,null,null,null,null,null,null,null,{"$f":"IF(D82<E82,\"грешка\",\"\")","v":""},{"$f":"IF(E82<F82,\"грешка\",\"\")","v":""},"","","","","","",""]
[null,"Хирургия","067",null,null,null,null,null,null,null,null,null,null,null,null,null,null,null,null,null,null,null,null,null,null,"","",{"$f":"IF(E83=G83+J83+M83+P83+S83+V83,\"\",\"грешка\")","v":""},{"$f":"IF(G83=H83+I83,\"\",\"грешка\")","v":""},{"$f":"IF(J83=K83+L83,\"\",\"грешка\")","v":""},{"$f":"IF(M83=N83+O83,\"\",\"грешка\")","v":""},{"$f":"IF(P83=Q83+R83,\"\",\"грешка\")","v":""},{"$f":"IF(S83=T83+U83,\"\",\"грешка\")","v":""},{"$f":"IF(V83=W83+X83,\"\",\"грешка\")","v":""}]
[null,"Неклинични специалности (ш.069 до 077)","068",null,null,null,null,null,null,null,null,null,null,null,null,null,null,null,null,null,null,null,null,null,null,"","","","","","","","",""]
[null,"Епидемиология на инфекциозните болести","069",null,null,null,null,null,null,null,null,null,null,null,null,null,null,null,null,null,null,null,null,null,null,"","","","","","","","",""]
[null,"Икономика на здравеопазването","070",null,null,null,null,null,null,null,null,null,null,null,null,null,null,null,null,null,null,null,null,null,null,"","","","","","","","",""]
[null,"Патофизиология","071",null,null,null,null,null,null,null,null,null,null,null,null,null,null,null,null,null,null,null,null,null,null,"","","","","","","","",""]
[null,"Радиобиология","072",null,null,null,null,null,null,null,null,null,null,null,null,null,null,null,null,null,null,null,null,null,null,"","","","","","","","",""]
[null,"Социална медицина и здравен мениджмънт","073",null,null,null,null,null,null,null,null,null,null,null,null,null,null,null,null,null,null,null,null,null,null,"","","","","","","","",""]
[null,"Токсикология","074",null,null,null,null,null,null,null,null,null,null,null,null,null,null,null,null,null,null,null,null,null,null,"","","","","","","","",""]
[null,"Трудова медицина","075",null,null,null,null,null,null,null,null,null,null,null,null,null,null,null,null,null,null,null,null,null,null,"","","","","","","","",""]
[null,"Хранене и диететика","076",null,null,null,null,null,null,null,null,null,null,null,null,null,null,null,null,null,null,null,null,null,null,"","","","","","","","",""]
[null,"Други специалности","077",null,null,null,null,null,null,null,null,null,null,null,null,null,null,null,null,null,null,null,null,null,null,"","","","","","","","",""]
[null,"Лекари по дентална медицина (ш.079+080)","078",null,null,null,null,null,null,null,null,null,null,null,null,null,null,null,null,null,null,null,null,null,null,"",null,"","","","","","",""]
[null,"В първична помощ","079",null,null,null,null,null,null,null,null,null,null,null,null,null,null,null,null,null,null,null,null,null,null,"",null,"","","","","","",""]
[null,"В специализирана помощ","080",null,null,null,null,null,null,null,null,null,null,null,null,null,null,null,null,null,null,null,null,null,null,"",null,"","","","","","",""]
[null,"Фармацевти","081",null,null,null,null,null,null,null,null,null,null,null,null,null,null,null,null,null,null,null,null,null,null,""]
[null,"Медицински специалисти по здравни грижи (ш.083 до 095)","082",null,null,null,null,null,null,null,null,null,null,null,null,null,null,null,null,null,null,null,null,null,null,"",null,"","","","","","",""]
[null,"Акушерки","083",null,null,null,null,null,null,null,null,null,null,null,null,null,null,null,null,null,null,null,null,null,null,"",null,"","","","","","",""]
[null,"Фелдшери","084",null,null,null,null,null,null,null,null,null,null,null,null,null,null,null,null,null,null,null,null,null,null,"",null,"","","","","","",""]
[null,"Лекарски асистенти","085",null,null,null,null,null,null,null,null,null,null,null,null,null,null,null,null,null,null,null,null,null,null,"",null,"","","","","","",""]
[null,"Медицински сестри ","086",null,null,null,null,null,null,null,null,null,null,null,null,null,null,null,null,null,null,null,null,null,null,"",null,"","","","","","",""]
[null,"Медицински лаборанти","087",null,null,null,null,null,null,null,null,null,null,null,null,null,null,null,null,null,null,null,null,null,null,"",null,"","","","","","",""]
[null,"Рентгенови лаборанти","088",null,null,null,null,null,null,null,null,null,null,null,null,null,null,null,null,null,null,null,null,null,null,"",null,"","","","","","",""]
[null,"Рехабилитатори","089",null,null,null,null,null,null,null,null,null,null,null,null,null,null,null,null,null,null,null,null,null,null,"",null,"","","","","","",""]
[null,"Масажисти (за лица с увредено зрение)","090",null,null,null,null,null,null,null,null,null,null,null,null,null,null,null,null,null,null,null,null,null,null,"",null,"","","","","","",""]
[null,"Инспектори по обществено здраве","091",null,null,null,null,null,null,null,null,null,null,null,null,null,null,null,null,null,null,null,null,null,null,"",null,"","","","","","",""]
[null,"Инструктори по хранене","092",null,null,null,null,null,null,null,null,null,null,null,null,null,null,null,null,null,null,null,null,null,null,"",null,"","","","","","",""]
[null,"Зъботехници","093",null,null,null,null,null,null,null,null,null,null,null,null,null,null,null,null,null,null,null,null,null,null,"",null,"","","","","","",""]
[null,"Помощник-фармацевти","094",null,null,null,null,null,null,null,null,null,null,null,null,null,null,null,null,null,null,null,null,null,null,"",null,"","","","","","",""]
[null,"Ортопедични техници","095",null,null,null,null,null,null,null,null,null,null,null,null,null,null,null,null,null,null,null,null,null,null,"",null,"","","","","","",""]
[null,"Друг персонал","096",null,null,null,null,null,null,null,null,null,null,null,null,null,null,null,null,null,null,null,null,null,null,""]
[null,"Санитари","097",null,null,null,null,null,null,null,null,null,null,null,null,null,null,null,null,null,null,null,null,null,null,""]
[null,"Болногледачи","098",null,null,null,null,null,null,null,null,null,null,null,null,null,null,null,null,null,null,null,null,null,null,""]
[null,"Здравни асистенти","099",null,null,null,null,null,null,null,null,null,null,null,null,null,null,null,null,null,null,null,null,null,null,""]
[null,"Социални работници","100",null,null,null,null,null,null,null,null,null,null,null,null,null,null,null,null,null,null,null,null,null,null,""]
[null,"Кинезитерапевти","101",null,null,null,null,null,null,null,null,null,null,null,null,null,null,null,null,null,null,null,null,null,null,""]
[null,"Масажисти","102",null,null,null,null,null,null,null,null,null,null,null,null,null,null,null,null,null,null,null,null,null,null,""]
[null,"Парамедици","103",null,null,null,null,null,null,null,null,null,null,null,null,null,null,null,null,null,null,null,null,null,null,{"$f":"IF(D119<E119,\"грешка\",\"\")","v":""}]
[null,"Технолози","104",null,null,null,null,null,null,null,null,null,null,null,null,null,null,null,null,null,null,null,null,null,null,""]
[null,"Други специалисти с висше немедицинско образование","105",null,null,null,null,null,null,null,null,null,null,null,null,null,null,null,null,null,null,null,null,null,null,""]
[null,"Биолози","106",null,null,null,null,null,null,null,null,null,null,null,null,null,null,null,null,null,null,null,null,null,null,""]
[null,"Психолози","107",null,null,null,null,null,null,null,null,null,null,null,null,null,null,null,null,null,null,null,null,null,null,""]
[null,"Физици","108",null,null,null,null,null,null,null,null,null,null,null,null,null,null,null,null,null,null,null,null,null,null,""]
[null,"Химици","109",null,null,null,null,null,null,null,null,null,null,null,null,null,null,null,null,null,null,null,null,null,null,""]
[null,"Други специалисти с немедицинско образование","110",null,null,null,null,null,null,null,null,null,null,null,null,null,null,null,null,null,null,null,null,null,null,""]
[]
["ВЕРТИКАЛЕН КОНТРОЛ:"]
[null,"ш.001= ш.002+ш.078+ш.081+ш.082+ш.096",null,{"$f":"IF(D17=D18+D94+D97+D98+D112,\"\",\"грешка\")","v":""},{"$f":"IF(E17=E18+E94+E97+E98+E112,\"\",\"грешка\")","v":""},{"$f":"IF(F17=F18+F94+F97+F98+F112,\"\",\"грешка\")","v":""}]
[null,"ш.002= ш.003 + ш.004",null,{"$f":"IF(D18=D19+D20,\"\",\"грешка\")","v":""},"","","","","","","","","","","","","","","","","","","",""]
[null,"ш.004= ш.005 + ш.068",null,{"$f":"IF(D20=D21+D84,\"\",\"грешка\")","v":""},"","","","","","","","","","","","","","","","","","","",""]
[null,"ш.005= на сумата от ш.006 до ш.055+ш.057 до ш.067",null,{"$f":"IF(D21=SUM(D22:D71)+SUM(D73:D83),\"\",\"грешка\")","v":""},"","","","","","","","","","","","","","","","","","","",""]
[null,"ш.055≥ ш.056",null,{"$f":"IF(D71<D72,\"грешка\",\"\")","v":""},"","","","","","","","","","","","","","","","","","","",""]
[null,"ш.068= на сумата от ш.069 до ш.077 ",null,{"$f":"IF(D84<>SUM(D85:D93),\"грешка\",\"\")","v":""},"","","","","","","","","","","","","","","","","","","",""]
[null,"ш.078= ш.079 + ш.080",null,{"$f":"IF(D94=D95+D96,\"\",\"грешка\")","v":""},"","","","","","","","","","","","","","","","","","","",""]
[null,"ш.082= на сумата от ш.083 до ш.095",null,{"$f":"IF(D98=SUM(D99:D111),\"\",\"грешка\")","v":""},"","","","","","","","","","","","","","","","","","","",""]
[null,"ш.096= на сумата от ш.097 до ш.105+ш.110",null,{"$f":"IF(D112=SUM(D113:D121)+D126,\"\",\"грешка\")","v":""},{"$f":"IF(E112=SUM(E113:E121)+E126,\"\",\"грешка\")","v":""}]
[null,"ш.105≥ на сумата от ш.106 до ш.109",null,{"$f":"IF(D121<SUM(D122:D125),\"грешка\",\"\")","v":""},{"$f":"IF(E121<SUM(E122:E125),\"грешка\",\"\")","v":""}]

{"sheet":"III.1.","index":2,"n_rows":67,"n_cols":14,"rows_kept":67,"cut":false,"hidden":false,"merged":[[10,8,12,8],[10,1,12,1],[10,2,12,2],[10,7,12,7],[11,3,12,3],[11,4,11,6],[10,3,10,6]]}
[{"$f":"I.!A1","v":""},"Област:",{"$f":"I.!C1","v":0}]
[{"$f":"I.!A2","v":""},"Лечебно заведение:",{"$f":"I.!C2","v":0}]
[null,"Година:",{"$f":"I.!C3","v":2023}]
[]
[]
[]
[]
[null,"Раздел ІII. Консултативно-амбулаторна дейност"]
[3,"1. Посещения"]
[null,null,null,null,null,null,null,null,null,null,"ХОРИЗОНТАЛЕН КОНТРОЛ:"]
[null,null,"Ши-фър","Посещения в амбулаторията",null,null,null,"Посещения по домовете","Лекарски телекон-султации"]
[null,null,null,"Всичко","в това число"]
[null,null,null,null,"деца до 17 г.","профилак-тични         (от к.1)","от тях на деца до 17 г.            (от к.3)",null,null,null,"к.1і к.2 ","к.1і к.3 ","к.3і к.4 ","к.2і к.4 "]
[null,"а","б",1,2,3,4,5,6]
[null,"Лекари (ш.02+03+35)","01",null,null,null,null,null,null,null,{"$f":"IF(D15<E15,\"грешка\",\"\")","v":""},{"$f":"IF(D15<F15,\"грешка\",\"\")","v":""},{"$f":"IF(F15<G15,\"грешка\",\"\")","v":""},{"$f":"IF(E15<G15,\"грешка\",\"\")","v":""}]
[null,"В първична помощ - ОПЛ","02",null,null,null,null,null,null,null,{"$f":"IF(D16<E16,\"грешка\",\"\")","v":""},{"$f":"IF(D16<F16,\"грешка\",\"\")","v":""},{"$f":"IF(F16<G16,\"грешка\",\"\")","v":""},{"$f":"IF(E16<G16,\"грешка\",\"\")","v":""}]
[null,"В специализирана помощ (ш.04 до 23+25+27 до 34)","03",null,null,null,null,null,null,null,"","","",""]
[null,"Акушерство и гинекология","04",null,null,null,null,null,null,null,"","","",""]
[null,"Вътрешни болести","05",null,null,null,null,null,null,null,"","","",""]
[null,"Гастроентерология","06",null,null,null,null,null,null,null,"","","",""]
[null,"Ендокринология и болести на обмяната","07",null,null,null,null,null,null,null,"","","",""]
[null,"Инфекциозни болести","08",null,null,null,null,null,null,null,"","","",""]
[null,"Кардиология","09",null,null,null,null,null,null,null,{"$f":"IF(D23<E23,\"грешка\",\"\")","v":""},{"$f":"IF(D23<F23,\"грешка\",\"\")","v":""},{"$f":"IF(F23<G23,\"грешка\",\"\")","v":""},{"$f":"IF(E23<G23,\"грешка\",\"\")","v":""}]
[null,"Клинична алергология","10",null,null,null,null,null,null,null,"","","",""]
[null,"Клинична токсикология","11",null,null,null,null,null,null,null,"","","",""]
[null,"Клинична хематология","12",null,null,null,null,null,null,null,"","","",""]
[null,"Кожни и венерически болести","13",null,null,null,null,null,null,null,"","","",""]
[null,"Лъчелечение","14",null,null,null,null,null,null,null,"","","",""]
[null,"Медицинска онкология","15",null,null,null,null,null,null,null,"","","",""]
[null,"Нуклеарна медицина","16",null,null,null,null,null,null,null,"","","",""]
[null,"Неврохирургия","17",null,null,null,null,null,null,null,"","","",""]
[null,"Нервни болести","18",null,null,null,null,null,null,null,"","","",""]
[null,"Нефрология","19",null,null,null,null,null,null,null,"","","",""]
[null,"Ортопедия и травматология","20",null,null,null,null,null,null,null,"","","",""]
[null,"Очни болести","21",null,null,null,null,null,null,null,"","","",""]
[null,"Педиатрия","22",null,null,null,null,null,null,null,"","","",""]
[null,"Пневмология и фтизиатрия","23",null,null,null,null,null,null,null,"","","",""]
[null,"в т.ч.: Бронхология","24",null,null,null,null,null,null,null,"","","",""]
[null,"Психиатрия","25",null,null,null,null,null,null,null,"","","",""]
[null,"в т.ч.: Наркология","26",null,null,null,null,null,null,null,"","","",""]
[null,"Съдебна психиатрия","27",null,null,null,null,null,null,null,"","","",""]
[null,"Ревматология","28",null,null,null,null,null,null,null,"","","",""]
[null,"Съдебна медицина и деонтология","29",null,null,null,null,null,null,null,"","","",""]
[null,"Урология","30",null,null,null,null,null,null,null,"","","",""]
[null,"Ушно-носно-гърлени болести","31",null,null,null,null,null,null,null,"","","",""]
[null,"Физикална и рехабилитационна медицина","32",null,null,null,null,null,null,null,"","","",""]
[null,"Хирургия","33",null,null,null,null,null,null,null,"","","",""]
[null,"Други специалности","34",null,null,null,null,null,null,null,"","","",""]
[null,"За 24-часово обслужване","35",null,null,null,null,null,null,null,"","","",""]
[null,"Дентална медицина (ш.37+38)","36",null,null,null,null,null,null,null,"","","",""]
[null,"В първична помощ","37",null,null,null,null,null,null,null,"","","",""]
[null,"В специализирана помощ","38",null,null,null,null,null,null,null,"","","",""]
[null,"Медицински специалисти по здравни грижи","39",null,null,null,null,null,null,null,"","","",""]
[null,"Фелдшери","40",null,null,null,null,null,null,null,"","","",""]
[null,"Акушерки","41",null,null,null,null,null,null,null,"","","",""]
[null,"Медицински сестри ","42",null,null,null,null,null,null,null,"","","",""]
[]
["ВЕРТИКАЛЕН КОНТРОЛ:"]
[null,"ш.01= ш.02+ш.03+ш.35",null,{"$f":"IF(D15=D16+D17+D49,\"\",\"грешка\")","v":""},{"$f":"IF(E15=E16+E17+E49,\"\",\"грешка\")","v":""},{"$f":"IF(F15=F16+F17+F49,\"\",\"грешка\")","v":""},"","",{"$f":"IF(I15=I16+I17+I49,\"\",\"грешка\")","v":""}]
[null,"ш.03= на сумата от ш.04 до ш.23+ш.25+ш.27 до ш.34",null,{"$f":"IF(D17=SUM(D18:D37)+D39+SUM(D41:D48),\"\",\"грешка\")","v":""},{"$f":"IF(E17=SUM(E18:E37)+E39+SUM(E41:E48),\"\",\"грешка\")","v":""},"","","",{"$f":"IF(I17=SUM(I18:I37)+I39+SUM(I41:I48),\"\",\"грешка\")","v":""}]
[null,"ш.23і ш.24 ",null,{"$f":"IF(D37<D38,\"грешка\",\"\")","v":""},{"$f":"IF(E37<E38,\"грешка\",\"\")","v":""},"","","",{"$f":"IF(I37<I38,\"грешка\",\"\")","v":""}]
[null,"ш.25і ш.26 ",null,{"$f":"IF(D39<D40,\"грешка\",\"\")","v":""},{"$f":"IF(E39<E40,\"грешка\",\"\")","v":""},"","","",{"$f":"IF(I39<I40,\"грешка\",\"\")","v":""}]
[null,"ш.36= ш.37+ш.38",null,{"$f":"IF(D50=D51+D52,\"\",\"грешка\")","v":""},{"$f":"IF(E50=E51+E52,\"\",\"грешка\")","v":""},"","",""]
[null,"ш.39і на сумата от ш.40 до ш.42 ",null,{"$f":"IF(D53<SUM(D54:D56),\"грешка\",\"\")","v":""},{"$f":"IF(E53<SUM(E54:E56),\"грешка\",\"\")","v":""},"","",""]
[]
["КОНТРОЛ МЕЖДУ  табл.1, раздел ІІІ и табл.2, раздел VІІ:"]
[null,"ш.13, к.3, р.ІІІ, т.1 ³ ш.01,к.1, р.VII, т.2",null,null,null,{"$f":"IF(F27<VII.2.!D14,\"грешка\",\"\")","v":""}]

{"sheet":"III.2.","index":3,"n_rows":18,"n_cols":5,"rows_kept":18,"cut":false,"hidden":false,"merged":[[10,1,11,1],[10,2,11,2],[10,3,10,4]]}
[{"$f":"I.!A1","v":""},"Област:",{"$f":"I.!C1","v":0}]
[{"$f":"I.!A2","v":""},"Лечебно заведение:",{"$f":"I.!C2","v":0}]
[null,"Година:",{"$f":"I.!C3","v":2023}]
[]
[]
[]
[]
[null,"Раздел ІII. Консултативно-амбулаторна дейност"]
[4,"2. Профилактична дейност (не се попълва от лекари по дентална медицина)"]
[]
[null,"Профилактични прегледи","Ши-фър","Възраст в навършени години"]
[null,null,null," 0 - 17 год.","над 18 год."]
[null,"а","б",1,2]
[null,"Обхванати с профилактичен преглед","01"]
[null,"Открити заболявания","02"]
[]
["ВЕРТИКАЛЕН КОНТРОЛ:"]
[null,"ако има данни на шифър 02, то и на ш.01 трябва да има данни",null,{"$f":"IF(D15>0,IF(D14>0,\"\",\"грешка\"),\"\")","v":""},{"$f":"IF(E15>0,IF(E14>0,\"\",\"грешка\"),\"\")","v":""}]

{"sheet":"III.3.","index":4,"n_rows":18,"n_cols":4,"rows_kept":18,"cut":false,"hidden":false,"merged":[]}
[{"$f":"I.!A1","v":""},"Област:",{"$f":"I.!C1","v":0}]
[{"$f":"I.!A2","v":""},"Лечебно заведение:",{"$f":"I.!C2","v":0}]
[null,"Година:",{"$f":"I.!C3","v":2023}]
[]
[]
[]
[]
[null,"Раздел ІII. Консултативно-амбулаторна дейност"]
[5,"3. Процедури (не се попълва от лекари по дентална медицина)"]
[]
[null,"Профилактични прегледи","Ши-фър","Брой"]
[null,null,"б",1]
[null,"Извършени хирургични процедури - всичко","01"]
[null,"от тях: амбулаторни","02"]
[null,"Екстракорпорална литотрипсия с ударни вълни","03"]
[]
["ВЕРТИКАЛЕН КОНТРОЛ:"]
[null,"ш.01і ш.02 ",null,{"$f":"IF(D13<D14,\"грешка\",\"\")","v":""}]

{"sheet":"III.4.","index":5,"n_rows":52,"n_cols":15,"rows_kept":52,"cut":false,"hidden":false,"merged":[[10,14,12,14],[10,1,12,1],[10,2,12,2],[10,3,12,3],[10,4,12,4],[10,12,12,12],[11,6,11,8],[10,10,12,10],[10,9,12,9],[10,13,12,13],[10,5,10,8],[11,5,12,5]]}
[{"$f":"I.!A1","v":""},"Област:",{"$f":"I.!C1","v":0}]
[{"$f":"I.!A2","v":""},"Лечебно заведение:",{"$f":"I.!C2","v":0}]
[null,"Година:",{"$f":"I.!C3","v":2023}]
[]
[]
[]
[]
[null,"Раздел ІII. Консултативно-амбулаторна дейност"]
[6,"4. Диспансерно наблюдение",null,null,null,null,null,null,null,null,null,null,"ХОРИЗОНТАЛЕН КОНТРОЛ:"]
[]
[null,"Наименование на болестите ","Шифър","Под наблюдение в началото на годината","Взети под наблюде- ние през годината","Снети от наблюдение ",null,null,null,"Остават под наблюде- ние в края на годината","В т.ч. деца до 17 г.",null,"к.3=к.4+к.5+к.6","к.7=к.1+к.2-к.3","к.7і к.8 "]
[null,null,null,null,null,"всичко","по причини"]
[null,null,null,null,null,null,"оздравя-ване","умиране","промяна в местож., работа и др.причини"]
[null,"а","б",1,2,3,4,5,6,7,8]
[null,"Общо (ш.02+03+05+08+10+11+15+20+22+23+27+28)","01",null,null,null,null,null,null,null,null,null,{"$f":"IF(F15=G15+H15+I15,\"\",\"грешка\")","v":""},{"$f":"IF(J15=D15+E15-F15,\"\",\"грешка\")","v":""},{"$f":"IF(J15<K15,\"грешка\",\"\")","v":""}]
[null,"Болести на кръвта, кръвотворнитеоргани и отделни нарушения, включващи имунния механизъм","02",null,null,null,null,null,null,null,null,null,{"$f":"IF(F16=G16+H16+I16,\"\",\"грешка\")","v":""},{"$f":"IF(J16=D16+E16-F16,\"\",\"грешка\")","v":""},{"$f":"IF(J16<K16,\"грешка\",\"\")","v":""}]
[null,"Болести на ендокринната система, разстройства на храненето и на обмяната на веществата","03",null,null,null,null,null,null,null,null,null,"","",""]
[null,"в т.ч.:  захарен диабет","04",null,null,null,null,null,null,null,null,null,"","",""]
[null,"Болести на нервната система","05",null,null,null,null,null,null,null,null,null,"","",""]
[null,"в т.ч.:  епилепсия","06",null,null,null,null,null,null,null,null,null,"","",""]
[null,"болест на Паркинсон","07",null,null,null,null,null,null,null,null,null,"","",""]
[null,"Болести на окото и придатъците му","08",null,null,null,null,null,null,null,null,null,"","",""]
[null,"в т.ч.: глаукома","09",null,null,null,null,null,null,null,null,null,"","",""]
[null,"Болести на ухото и мастоидния израстък","10",null,null,null,null,null,null,null,null,null,"","",""]
[null,"Болести на органите на кръвообращението","11",null,null,null,null,null,null,null,null,null,"","",""]
[null,"в т.ч.:  хипертонични болести","12",null,null,null,null,null,null,null,null,null,"","",""]
[null,"исхемична болест на сърцето","13",null,null,null,null,null,null,null,null,null,"","",""]
[null,"последици от мозъчно-съдова болест","14",null,null,null,null,null,null,null,null,null,"","",""]
[null," Болести на дихателната система","15",null,null,null,null,null,null,null,null,null,"","",""]
[null,"в т.ч.:  хроничен бронхит","16",null,null,null,null,null,null,null,null,null,"","",""]
[null,"друга хронична обструктивна белодробна болест","17",null,null,null,null,null,null,null,null,null,"","",""]
[null,"астма","18",null,null,null,null,null,null,null,null,null,"","",""]
[null,"бронхиектатична болест","19",null,null,null,null,null,null,null,null,null,"","",""]
[null,"Болести на храносмилателната система","20",null,null,null,null,null,null,null,null,null,"","",""]
[null,"в т.ч.: язвена болест на стомаха и дванадесетопръстника","21",null,null,null,null,null,null,null,null,null,"","",""]
[null,"Болести на костно-мускулната система и на съединителната тъкан","22",null,null,null,null,null,null,null,null,null,"","",""]
[null,"Болести на пикочо-половата система","23",null,null,null,null,null,null,null,null,null,"","",""]
[null,"в т.ч.:  гломерулни болести","24",null,null,null,null,null,null,null,null,null,"","",""]
[null,"хроничен тубулоинтерстициален нефрит","25",null,null,null,null,null,null,null,null,null,"","",""]
[null,"невъзпалителни болести на женските полови органи","26",null,null,null,null,null,null,null,null,null,"","",""]
[null,"Бременност, раждане и послеродов период","27",null,null,null,null,null,null,null,null,null,"","",""]
[null,"Други","28",null,null,null,null,null,null,null,null,null,"","",""]
[]
["ВЕРТИКАЛЕН КОНТРОЛ:"]
[null,"ш.01= ш.02+ш.03+ш.05+ш.08+ш.10+ш.11+ш.15+ш.20 + ш.22+ш.23+ш.27+ш.28",null,{"$f":"IF(D15=D16+D17+D19+D22+D24+D25+D29+D34+D36+D37+D41+D42,\"\",\"грешка\")","v":""},{"$f":"IF(E15=E16+E17+E19+E22+E24+E25+E29+E34+E36+E37+E41+E42,\"\",\"грешка\")","v":""},"","","","","",""]
[null,"ш.03і ш.04",null,{"$f":"IF(D17<D18,\"грешка\",\"\")","v":""},{"$f":"IF(E17<E18,\"грешка\",\"\")","v":""},"","","","","",""]
[null,"ш.05і ш.06+ш.07",null,{"$f":"IF(D19<D20+D21,\"грешка\",\"\")","v":""},{"$f":"IF(E19<E20+E21,\"грешка\",\"\")","v":""},"","","","","",""]
[null,"ш.08і ш.09",null,{"$f":"IF(D22<D23,\"грешка\",\"\")","v":""},{"$f":"IF(E22<E23,\"грешка\",\"\")","v":""},"","","","","",""]
[null,"ш.11і на сумата от ш.12 до ш.14 ",null,{"$f":"IF(D25<SUM(D26:D28),\"грешка\",\"\")","v":""},{"$f":"IF(E25<SUM(E26:E28),\"грешка\",\"\")","v":""},"","","","","",""]
[null,"ш.15і на сумата от ш.16 до ш.19 ",null,{"$f":"IF(D29<SUM(D30:D33),\"грешка\",\"\")","v":""},{"$f":"IF(E29<SUM(E30:E33),\"грешка\",\"\")","v":""},"","","","","",""]
[null,"ш.20і ш.21 ",null,{"$f":"IF(D34<D35,\"грешка\",\"\")","v":""},{"$f":"IF(E34<E35,\"грешка\",\"\")","v":""},"","","","","",""]
[null,"ш.23і на сумата от ш.24 до ш.26 ",null,{"$f":"IF(D37<SUM(D38:D40),\"грешка\",\"\")","v":""},{"$f":"IF(E37<SUM(E38:E40),\"грешка\",\"\")","v":""},"","","","","",""]

{"sheet":"IV.","index":6,"n_rows":15,"n_cols":21,"rows_kept":15,"cut":false,"hidden":false,"merged":[[11,9,12,9],[11,1,12,1],[11,2,12,2],[11,3,11,4],[11,5,12,5],[11,6,11,8],[11,17,12,17],[11,18,12,18],[11,19,12,19],[11,20,12,20],[11,10,12,10],[11,11,12,11],[11,12,12,12],[11,13,12,13],[11,14,12,14],[11,15,12,15]]}
[{"$f":"I.!A1","v":""},"Област:",{"$f":"I.!C1","v":0}]
[{"$f":"I.!A2","v":""},"Лечебно заведение:",{"$f":"I.!C2","v":0}]
[null,"Година:",{"$f":"I.!C3","v":2023}]
[]
[]
[]
[]
[null,"Раздел ІV. "]
[7,"Легла за наблюдение и лечение до 48 часа"]
[]
[null,null,null,null,null,null,null,null,null,null,null,null,null,null,null,null,null,"ХОРИЗОНТАЛЕН КОНТРОЛ:"]
[null,null,"Ши-фър","Легла",null,"Болни в началото на годината","През годината",null,null,"Болни в края на годината","Прове-дени леглодни през годината","Изпол-зваемост","Среден престой","Оборот","Летали-тет","Преми-нали болни",null,"к.7=(к.3+к.4)-(к.5+к.6)","ако в колони от 3 до 7 има данни, то и в к.2 трябва да има данни","ако в колони от 3 до 7 има данни, то и в к.8 трябва да има данни","ако в колона 8 има данни, то и в к.2 и в някоя от колони 3 до 7 трябва да има данни"]
[null,null,null,"в края на годината","средно-годишен брой легла",null,"постъпили","изписани","умрели"]
[null,"а","б",1,2,3,4,5,6,7,8,9,10,11,12,13]
[null,"Общо","01",null,null,null,null,null,null,null,null,{"$f":"K15/E15","v":{"$error":"#DIV/0!"}},{"$f":"K15/(F15+G15)","v":{"$error":"#DIV/0!"}},{"$f":"(F15+G15)/E15","v":{"$error":"#DIV/0!"}},{"$f":"I15*100/(H15+I15)","v":{"$error":"#DIV/0!"}},{"$f":"F15+G15","v":0},null,{"$f":"IF(J15=(F15+G15)-(H15+I15),\"\",\"грешка\")","v":""},{"$f":"IF(SUM(F15:J15)>0,IF(E15>0,\"\",\"грешка\"),\"\")","v":""},{"$f":"IF(SUM(F15:J15)>0,IF(K15>0,\"\",\"грешка\"),\"\")","v":""},{"$f":"IF(K15>0,IF(E15>0,IF(SUM(F15:J15)>0,\"\",\"грешка\"),\"грешка\"),\"\")","v":""}]

{"sheet":"V.1.","index":7,"n_rows":46,"n_cols":4,"rows_kept":46,"cut":false,"hidden":false,"merged":[]}
[{"$f":"I.!A1","v":""},"Област:",{"$f":"I.!C1","v":0}]
[{"$f":"I.!A2","v":""},"Лечебно заведение:",{"$f":"I.!C2","v":0}]
[null,"Година:",{"$f":"I.!C3","v":2023}]
[]
[]
[]
[]
[null,"Раздел V. Акушеро-гинекологична дейност"]
[8,"1. Аборти, извършени в заведението"]
[]
[null,null,"Ши-фър","Общо"]
[null,"а","б",1]
[null,"Аборти (О03-О06) - всичко (ш.02+06+17)","01"]
[null,"Спонтанни аборти (О03) (ш.03 до 05)","02"]
[null,"Бременни до:  12 гестационна седмица","03"]
[null,"13-20 гестационна седмица","04"]
[null,"20 и повече гестационни седмици","05"]
[null,"Терапевтични аборти (О04) (ш.07+12)","06"]
[null,"По желание (ш.08 до 11)","07"]
[null,"Жени: без деца","08"]
[null,"с едно дете","09"]
[null,"с две деца","10"]
[null,"с три и повече деца","11"]
[null,"По медицински показания  (ш.13 до 16)","12"]
[null,"Бременни до:  10 гестационна седмица","13"]
[null,"11-22 гестационна седмица","14"]
[null,"23-25 гестационна седмица","15"]
[null,"25 и повече гестационни седмици","16"]
[null,"Други видове и аборт неуточнен (О05,О06)","17"]
[null,"Общ брой на умрелите жени след аборт","18"]
[]
["ВЕРТИКАЛЕН КОНТРОЛ:"]
[null,"ш.01 = ш.02+ш.06+ш.17",null,{"$f":"IF(D13=D14+D18+D29,\"\",\"грешка\" )","v":""}]
[null,"ш.02 =  на сумата от ш.03 до ш.05",null,{"$f":"IF(D14=SUM(D15:D17),\"\",\"грешка\" )","v":""}]
[null,"ш.06 =  ш.07+ш.12",null,{"$f":"IF(D18=D19+D24,\"\",\"грешка\" )","v":""}]
[null,"ш.07 =  на сумата от ш.08 до ш.11",null,{"$f":"IF(D19=SUM(D20:D23),\"\",\"грешка\" )","v":""}]
[null,"ш.12 =  на сумата от ш.13 до ш.16",null,{"$f":"IF(D24=SUM(D25:D28),\"\",\"грешка\" )","v":""}]
[null,"ш.01 і ш.18",null,{"$f":"IF(D13<D30,\"грешка\",\"\")","v":""}]
[]
["КОНТРОЛ МЕЖДУ табл.1, раздел V и табл.1а, раздел V:"]
[null,"ш.01,р.V, т.1 = ш.01,к.1, р.V, т.1a",null,{"$f":"IF(D13=V.1a.!D15,\"\",\"грешка\" )","v":""}]
[null,"ш.02,р.V, т.1 = ш.01,к.2, р.V, т.1a",null,{"$f":"IF(D14=V.1a.!E15,\"\",\"грешка\" )","v":""}]
[null,"ш.06,р.V, т.1 = ш.01,к.3, р.V, т.1a",null,{"$f":"IF(D18=V.1a.!F15,\"\",\"грешка\" )","v":""}]
[null,"ш.07,р.V, т.1 = ш.01,к.4, р.V, т.1a",null,{"$f":"IF(D19=V.1a.!G15,\"\",\"грешка\" )","v":""}]
[null,"ш.12,р.V, т.1 = ш.01,к.5, р.V, т.1a",null,{"$f":"IF(D24=V.1a.!H15,\"\",\"грешка\" )","v":""}]
[null,"ш.17,р.V, т.1 = ш.01,к.6, р.V, т.1a",null,{"$f":"IF(D29=V.1a.!I15,\"\",\"грешка\" )","v":""}]

{"sheet":"V.1a.","index":8,"n_rows":35,"n_cols":12,"rows_kept":35,"cut":false,"hidden":false,"merged":[[10,11,11,11],[11,4,12,4],[11,5,12,5],[11,6,11,7],[11,8,12,8],[10,1,12,1],[10,2,12,2],[10,3,12,3],[10,4,10,8],[10,10,11,10]]}
[{"$f":"I.!A1","v":""},"Област:",{"$f":"I.!C1","v":0}]
[{"$f":"I.!A2","v":""},"Лечебно заведение:",{"$f":"I.!C2","v":0}]
[null,"Година:",{"$f":"I.!C3","v":2023}]
[]
[]
[]
[]
[null,"Раздел V. Акушеро-гинекологична дейност"]
[9,"1а. Аборти по възраст на жената"]
[null,null,null,null,null,null,null,null,null,null,"ХОРИЗОНТАЛЕН КОНТРОЛ:"]
[null,"Възраст (в навършени години)","Ши-фър","Аборти (О03-О06) (к.2+3+6)","По вид",null,null,null,null,null,"к.1= к.2+к.3+к.6","к.3 = к.4+к.5"]
[null,null,null,null,"Спонт-анни (О03)","Терапев-тични (О04)","от тях:",null,"други видове и аборт, неуточнен (О05,О06)"]
[null,null,null,null,null,null,"по желание ","по медицин-ски показа- ния"]
[null,"а","б",1,2,3,4,5,6]
[null,"Общо ","01",null,null,null,null,null,null,null,{"$f":"IF(D15=E15+F15+I15,\"\",\"грешка\")","v":""},{"$f":"IF(F15=G15+H15,\"\",\"грешка\")","v":""}]
[null,"Под 15","02",null,null,null,null,null,null,null,{"$f":"IF(D16=E16+F16+I16,\"\",\"грешка\")","v":""},{"$f":"IF(F16=G16+H16,\"\",\"грешка\")","v":""}]
[null,"15 до 19","03",null,null,null,null,null,null,null,"",""]
[null,"20 до 24","04",null,null,null,null,null,null,null,"",""]
[null,"25 до 29","05",null,null,null,null,null,null,null,"",""]
[null,"30 до 34","06",null,null,null,null,null,null,null,"",""]
[null,"35 до 39","07",null,null,null,null,null,null,null,"",""]
[null,"40 до 44","08",null,null,null,null,null,null,null,"",""]
[null,"45 до 49","09",null,null,null,null,null,null,null,"",""]
[null,"50 +","10",null,null,null,null,null,null,null,"",""]
[]
["ВЕРТИКАЛЕН КОНТРОЛ:"]
[null,"ш.01=  на сумата от ш.02 до ш.10",null,{"$f":"IF(D15=SUM(D16:D24),\"\",\"грешка\" )","v":""},{"$f":"IF(E15=SUM(E16:E24),\"\",\"грешка\" )","v":""},"","","",{"$f":"IF(I15=SUM(I16:I24),\"\",\"грешка\" )","v":""}]
[]
["КОНТРОЛ МЕЖДУ табл.1, раздел V и табл.1а, раздел V:"]
[null,"ш.01,к.1, р.V, т.1a = ш.01, р.V, т.1",null,{"$f":"IF(D15=V.1.!D13,\"\",\"грешка\" )","v":""}]
[null,"ш.01,к.2, р.V, т.1a = ш.02, р.V, т.1",null,null,{"$f":"IF(E15=V.1.!D14,\"\",\"грешка\" )","v":""}]
[null,"ш.01,к.3, р.V, т.1a = ш.06, р.V, т.1",null,null,null,{"$f":"IF(F15=V.1.!D18,\"\",\"грешка\" )","v":""}]
[null,"ш.01,к.4, р.V, т.1a = ш.07, р.V, т.1",null,null,null,null,{"$f":"IF(G15=V.1.!D19,\"\",\"грешка\" )","v":""}]
[null,"ш.01,к.5, р.V, т.1a = ш.12, р.V, т.1",null,null,null,null,null,{"$f":"IF(H15=V.1.!D24,\"\",\"грешка\" )","v":""}]
[null,"ш.01,к.6, р.V, т.1a = ш.17, р.V, т.1",null,null,null,null,null,null,{"$f":"IF(I15=V.1.!D29,\"\",\"грешка\" )","v":""}]

{"sheet":"V.2.","index":9,"n_rows":21,"n_cols":4,"rows_kept":21,"cut":false,"hidden":false,"merged":[]}
[{"$f":"I.!A1","v":""},"Област:",{"$f":"I.!C1","v":0}]
[{"$f":"I.!A2","v":""},"Лечебно заведение:",{"$f":"I.!C2","v":0}]
[null,"Година:",{"$f":"I.!C3","v":2023}]
[]
[]
[]
[]
[null,"Раздел V. Акушеро-гинекологична дейност"]
[10,"2. Профилактична АГ дейност"]
[]
[null,null,"Ши-фър","Брой"]
[null,"а","б",1]
[null,"Прегледани жени - всичко","01"]
[null,"в т.ч. с цитонамазка","02"]
[null,"Открити за първи път:                           гинекологични заболявания","03"]
[null,"злокачествени заболявания","04"]
[]
["ВЕРТИКАЛЕН КОНТРОЛ:"]
[null,"ш.01і ш.02",null,{"$f":"IF(D13<D14,\"грешка\",\"\")","v":""}]
[null,"ш.01і ш.03",null,{"$f":"IF(D13<D15,\"грешка\",\"\")","v":""}]
[null,"ш.01і ш.04",null,{"$f":"IF(D13<D16,\"грешка\",\"\")","v":""}]

{"sheet":"V.2a.","index":10,"n_rows":14,"n_cols":16,"rows_kept":14,"cut":false,"hidden":false,"merged":[[10,1,11,1],[10,2,11,2],[10,3,11,3],[10,4,10,10],[10,15,11,15]]}
[{"$f":"I.!A1","v":""},"Област:",{"$f":"I.!C1","v":0}]
[{"$f":"I.!A2","v":""},"Лечебно заведение:",{"$f":"I.!C2","v":0}]
[null,"Година:",{"$f":"I.!C3","v":2023}]
[]
[]
[]
[]
[null,"Раздел V. Акушеро-гинекологична дейност"]
[11,"2а. Профилактична дейност на бременни"]
[null,null,null,null,null,null,null,null,null,null,null,null,"ХОРИЗОНТАЛЕН КОНТРОЛ:"]
[null,null,"Ши-фър","Общо","в това число за:",null,null,null,null,null,null,null,"к.3і к.4","к.5і к.6","к.7і к.8","ако има данни в колони от 2, 3, 5 и 7, то и в к.1 трябва да има данни"]
[null,null,null,null,"Пренатален скрининг","Сифилис","от тях: положи-телни проби","ХИВ","от тях: положителни проби","Хепатит В","от тях: положи-телни проби"]
[null,"а","б",1,2,3,4,5,6,7,8]
[null,"Изследвани бременни - всичко","01",null,null,null,null,null,null,null,null,null,{"$f":"IF(F14>=G14,\"\",\"грешка\")","v":""},{"$f":"IF(H14>=I14,\"\",\"грешка\")","v":""},{"$f":"IF(J14>=K14,\"\",\"грешка\")","v":""},{"$f":"IF((SUM(E14:H14)+J14)>0,IF(D14>0,\"\",\"грешка\"),\"\")","v":""}]

{"sheet":"V.3.","index":11,"n_rows":34,"n_cols":4,"rows_kept":34,"cut":false,"hidden":false,"merged":[]}
[{"$f":"I.!A1","v":""},"Област:",{"$f":"I.!C1","v":0}]
[{"$f":"I.!A2","v":""},"Лечебно заведение:",{"$f":"I.!C2","v":0}]
[null,"Година:",{"$f":"I.!C3","v":2023}]
[]
[]
[]
[]
[null,"Раздел V. Акушеро-гинекологична дейност"]
[12,"3. Асистирана репродукция"]
[]
[null,null,"Ши-фър","Брой"]
[null,"а","б",1]
[null,"Легла","01"]
[null,"Лекари","02"]
[null,"в т.ч.: акушеро-гинеколози","03"]
[null,"с 3 годишен опит в АР","04"]
[null,"анестезиология и интензивно лечение","05"]
[null,"други","06"]
[null,"Биолози","07"]
[null,"Резултат от дейността:                           Клинични бременности в резултат на АР","08"]
[null,"от тях завършили с раждане в резултат на АР","09"]
[null,"в т.ч.: на 1 дете","10"]
[null,"на близнаци","11"]
[null,"на повече от 2 плода","12"]
[null,"от ш. 09 с вродени малформации/заболявания","13"]
[]
["ВЕРТИКАЛЕН КОНТРОЛ:"]
[null,"ш.02= ш.03+ш.05+ш.06 ",null,{"$f":"IF(D14=D15+D17+D18,\"\",\"грешка\")","v":""}]
[null,"ш.03і ш.04",null,{"$f":"IF(D15<D16,\"грешка\",\"\")","v":""}]
[null,"ш.08і ш.09",null,{"$f":"IF(D20<D21,\"грешка\",\"\")","v":""}]
[null,"ш.09= ш.10+ш.11+ш.12 ",null,{"$f":"IF(D21=D22+D23+D24,\"\",\"грешка\")","v":""}]
[]
[null,"ако има данни на шифри от 10 до 12, то и на ш.09 трябва да има данни",null,{"$f":"IF(SUM(D22:D24)>0,IF(D21>0,\"\",\"грешка\"),\"\")","v":""}]
[null,"ако има данни на шифър 13, то и на ш.09 трябва да има данни",null,{"$f":"IF(D25>0,IF(D21>0,\"\",\"грешка\"),\"\")","v":""}]

{"sheet":"VI.1.","index":12,"n_rows":24,"n_cols":4,"rows_kept":24,"cut":false,"hidden":false,"merged":[]}
[{"$f":"I.!A1","v":""},"Област:",{"$f":"I.!C1","v":0}]
[{"$f":"I.!A2","v":""},"Лечебно заведение:",{"$f":"I.!C2","v":0}]
[null,"Година:",{"$f":"I.!C3","v":2023}]
[]
[]
[]
[]
[null,"Раздел VІ. Дейност на психиатричните структури"]
[13,"1. Структурни звена"]
[]
[null,null,"Шиф-ър","Брой"]
[null,"а","б",1]
[null,"Психиатрия","01"]
[null,"Детско-юношеска психиатрия","02"]
[null,"Наркология","03"]
[null,"Обща психиатрия","04"]
[null,"Съдебна психиатрия","05"]
[null,"Други","06"]
[null,"Лаборатории","07"]
[null,"Психологична","08"]
[]
["ВЕРТИКАЛЕН КОНТРОЛ:"]
[null,"ш.01=  на сумата от ш.02 до ш.06",null,{"$f":"IF(D13=SUM(D14:D18),\"\",\"грешка\")","v":""}]
[null,"ш.07³  ш.08",null,{"$f":"IF(D19<D20,\"грешка\",\"\")","v":""}]

{"sheet":"VI.2.","index":13,"n_rows":51,"n_cols":22,"rows_kept":51,"cut":false,"hidden":false,"merged":[[10,21,11,21],[11,9,11,10],[10,1,12,1],[10,2,12,2],[10,3,12,3],[10,4,12,4],[10,5,10,6],[10,7,12,7],[11,5,12,5],[11,6,12,6],[10,8,12,8],[10,9,10,10],[10,11,12,11],[10,12,12,12],[10,13,12,13]]}
[{"$f":"I.!A1","v":""},"Област:",{"$f":"I.!C1","v":0}]
[{"$f":"I.!A2","v":""},"Лечебно заведение:",{"$f":"I.!C2","v":0}]
[null,"Година:",{"$f":"I.!C3","v":2023}]
[]
[]
[]
[]
[null,"Раздел VІ. Дейност на психиатричните структури"]
[14,"2. Болни под наблюдение"]
[null,null,null,null,null,null,null,null,null,null,null,null,null,null,null,"ХОРИЗОНТАЛЕН КОНТРОЛ:"]
[null,"Наименование на болестите по МКБ-10","Шифър","Под наблюдение в началото на годината","Взети под наблюде- ние през годината","В това число",null,"Болни приведени в дадената група поради промяна на диагнозата","Снети от наблю-дение през годината","В това число:",null,"Болни преведени в други групи поради промяна на диагнозата","Остават под наблюде- ние в края на годината","В това число особено обществено опасни",null,"к.5= к.9, за ш.01 ","к.2і к.3 ","к.2і к.4 ","к.6і к.7 ","к.7і к.8 ","к.10і к.11","к.10=(к.1+к.2+к.5)-(к.6+к.9)"]
[null,null,null,null,null,"деца от 0 до 17 г.","заболели за първи път в живота си (от к.2)",null,null,"умрели"]
[null,null,null,null,null,null,null,null,null,"всичко","от тях: самоу-били се"]
[null,"а","б",1,2,3,4,5,6,7,8,9,10,11]
[null,"Всичко (ш.02+27)","01",null,null,null,null,null,null,null,null,null,null,null,null,{"$f":"IF(H15<>L15,\"грешка\",\"\")","v":""},{"$f":"IF(E15<F15,\"грешка\",\"\")","v":""},{"$f":"IF(E15<G15,\"грешка\",\"\")","v":""},{"$f":"IF(I15<J15,\"грешка\",\"\")","v":""},{"$f":"IF(J15<K15,\"грешка\",\"\")","v":""},{"$f":"IF(M15<N15,\"грешка\",\"\")","v":""},{"$f":"IF(M15=(D15+E15+H15)-(I15+L15),\"\",\"грешка\")","v":""}]
[null,"Психични и поведенчески разстройства (F00-F99)","02",null,null,null,null,null,null,null,null,null,null,null,null,null,{"$f":"IF(E16<F16,\"грешка\",\"\")","v":""},{"$f":"IF(E16<G16,\"грешка\",\"\")","v":""},{"$f":"IF(I16<J16,\"грешка\",\"\")","v":""},"",{"$f":"IF(M16<N16,\"грешка\",\"\")","v":""},{"$f":"IF(M16=(D16+E16+H16)-(I16+L16),\"\",\"грешка\")","v":""}]
[null,"Деменция (F00­F03)","03",null,null,null,null,null,null,null,null,null,null,null,null,null,"","","","","",{"$f":"IF(M17=(D17+E17+H17)-(I17+L17),\"\",\"грешка\")","v":""}]
[null,"Делир, непредизвикан от алкохол и други психоактивни вещества (F05)","04",null,null,null,null,null,null,null,null,null,null,null,null,null,"","","","","",""]
[null,"Други разстройства, дължащи се на мозъчно заболяване (F06,F07,F09)","05",null,null,null,null,null,null,null,null,null,null,null,null,null,"","","","","",""]
[null,"Психични и поведенчески разстройства, дължащи се на употреба на алкохол (F10) ","06",null,null,null,null,null,null,null,null,null,null,null,null,null,"","","","","",""]
[null,"Психични и поведенчески разстройства,  дължащи се на употреба на други психоактивни вещества (F11-F19)","07",null,null,null,null,null,null,null,null,null,null,null,null,null,"","","","","",""]
[null,"Психични и поведенчески разстройства, дължащи се на употребата на опиоиди (F11)","08",null,null,null,null,null,null,null,null,null,null,null,null,null,"","","","","",""]
[null,"Шизофрения, шизотипни и налудни разстройства (F20­F29)","09",null,null,null,null,null,null,null,null,null,null,null,null,null,"","","","","",""]
[null,"Шизофрения (F20)","10",null,null,null,null,null,null,null,null,null,null,null,null,null,"","","","","",""]
[null,"Остри и преходни психотични разстройства (F23)","11",null,null,null,null,null,null,null,null,null,null,null,null,null,"","","","","",""]
[null,"Разстройства на настроението [афективни разстройства] (F30­F39)","12",null,null,null,null,null,null,null,null,null,null,null,null,null,"","","","","",""]
[null,"Маниен епизод (F30)","13",null,null,null,null,null,null,null,null,null,null,null,null,null,"","","","","",""]
[null,"Биполярно афективно разстройство (F31)","14",null,null,null,null,null,null,null,null,null,null,null,null,null,"","","","","",""]
[null,"Депресивен епизод (F32)","15",null,null,null,null,null,null,null,null,null,null,null,null,null,"","","","","",""]
[null,"Рецидивиращо депресивно разстройство (F33)","16",null,null,null,null,null,null,null,null,null,null,null,null,null,"","","","","",""]
[null,"Невротични, свързани със стрес и сомато-формни разстройства (F40­F48)","17",null,null,null,null,null,null,null,null,null,null,null,null,null,"","","","","",""]
[null,"Разстройства на храненето, съня и сексуалността (F50,F51,F52)","18",null,null,null,null,null,null,null,null,null,null,null,null,null,"","","","","",""]
[null,"Разстройства на личността и поведението в зряла възраст (F60-F69) ","19",null,null,null,null,null,null,null,null,null,null,null,null,null,"","","","","",""]
[null,"Умствена изостаналост (F70-F79)","20",null,null,null,null,null,null,null,null,null,null,null,null,null,"","","","","",""]
[null,"Специфични разстройства в развитието (F80-F83)","21",null,null,null,null,null,null,null,null,null,null,null,null,null,"","","","","",""]
[null,"Генерализирани разстройства в развитието (F84)","22",null,null,null,null,null,null,null,null,null,null,null,null,null,"","","","","",""]
[null,"Аутизъм (F84.0-F84.3, F84.5)","23",null,null,null,null,null,null,null,null,null,null,null,null,null,"","","","","",""]
[null,"Хиперкинетични разстройства (F90)","24",null,null,null,null,null,null,null,null,null,null,null,null,null,"","","","","",""]
[null,"Други разстройства в поведението и емоциите (F91-F95)","25",null,null,null,null,null,null,null,null,null,null,null,null,null,"","","","","",""]
[null,"Неорганична енуреза (F98.0)","26",null,null,null,null,null,null,null,null,null,null,null,null,null,"","","","","",""]
[null,"Всички останали класове болести","27",null,null,null,null,null,null,null,null,null,null,null,null,null,"","","","","",""]
[null,"Епилепсия (G40)","28",null,null,null,null,null,null,null,null,null,null,null,null,null,"","","","","",""]
[]
["ВЕРТИКАЛЕН КОНТРОЛ:"]
[null,"ш.01= ш.02+ш.27",null,{"$f":"IF(D15=D16+D41,\"\",\"грешка\")","v":""},{"$f":"IF(E15=E16+E41,\"\",\"грешка\")","v":""},"","","","","","","","",""]
[null,"ш.02і на сумата от ш.03 до ш.07+ш.09+ш.12+ш.17 до ш.22+ш.24 до ш.26",null,{"$f":"IF(D16<SUM(D17:D21,D23,D26,D31:D36,D38:D40),\"грешка\",\"\")","v":""},{"$f":"IF(E16<SUM(E17:E21,E23,E26,E31:E36,E38:E40),\"грешка\",\"\")","v":""},"","","","","","","","",""]
[null,"ш.07і ш.08",null,{"$f":"IF(D21<D22,\"грешка\",\"\")","v":""},{"$f":"IF(E21<E22,\"грешка\",\"\")","v":""},"","","","","","","","",""]
[null,"ш.09і ш.10+ш.11",null,{"$f":"IF(D23<D24+D25,\"грешка\",\"\")","v":""},{"$f":"IF(E23<E24+E25,\"грешка\",\"\")","v":""},"","","","","","","","",""]
[null,"ш.12і на сумата от ш.13 до ш.16",null,{"$f":"IF(D26<SUM(D27:D30),\"грешка\",\"\")","v":""},{"$f":"IF(E26<SUM(E27:E30),\"грешка\",\"\")","v":""},"","","","","","","","",""]
[null,"ш.22і ш.23",null,{"$f":"IF(D36<D37,\"грешка\",\"\")","v":""},{"$f":"IF(E36<E37,\"грешка\",\"\")","v":""},"","","","","","","","",""]
[null,"ш.27і ш.28",null,{"$f":"IF(D41<D42,\"грешка\",\"\")","v":""},{"$f":"IF(E41<E42,\"грешка\",\"\")","v":""},"","","","","","","","",""]

{"sheet":"VI.3.","index":14,"n_rows":14,"n_cols":9,"rows_kept":14,"cut":false,"hidden":false,"merged":[]}
[{"$f":"I.!A1","v":""},"Област:",{"$f":"I.!C1","v":0}]
[{"$f":"I.!A2","v":""},"Лечебно заведение:",{"$f":"I.!C2","v":0}]
[null,"Година:",{"$f":"I.!C3","v":2023}]
[]
[]
[]
[]
[null,"Раздел VІ. Дейност на психиатричните структури"]
[15,"3. Произшествия"]
[]
[null,null,"Ши-фър","Болни, извършили убийства","Болни, направили опит за самоубийство","Болни, извършили бягство","Нападения, извършени от болни срещу персонала","Нападения, извършени от болни срещу болни","Агресия срещу инвентар"]
[null,"а","б",1,2,3,4,5,6]
[null,"В стационара ","01"]
[null,"В извънболнични условия","02"]

{"sheet":"VI.4.","index":15,"n_rows":14,"n_cols":15,"rows_kept":14,"cut":false,"hidden":false,"merged":[[10,8,10,9],[10,1,11,1],[10,2,11,2],[10,3,11,3],[10,4,10,5],[10,6,10,7]]}
[{"$f":"I.!A1","v":""},"Област:",{"$f":"I.!C1","v":0}]
[{"$f":"I.!A2","v":""},"Лечебно заведение:",{"$f":"I.!C2","v":0}]
[null,"Година:",{"$f":"I.!C3","v":2023}]
[]
[]
[]
[]
[null,"Раздел VІ. Дейност на психиатричните структури"]
[16,"4. Съдебно-психиатрична експертиза"]
[null,null,null,null,null,null,null,null,null,null,null,"ХОРИЗОНТАЛЕН КОНТРОЛ:"]
[null,null,"Ши-фър","Общо (к.2+4+6)","В наказателен процес",null,"В граждански процес",null,"По член 156 от Закон за здравето",null,null,"к.1= к.2+к.4+к.6","к.2і к.3 ","к.4і к.5 ","к.6і к.7 "]
[null,null,null,null,"всичко","в т.ч. невменяеми","всичко","в т.ч. недееспо-собни","всичко","в т.ч. за прекратяване"]
[null,"а","б",1,2,3,4,5,6,7]
[null,"Експертизи","01",null,null,null,null,null,null,null,null,{"$f":"IF(D14<>E14+G14+I14,\"грешка\",\"\")","v":""},{"$f":"IF(E14<F14,\"грешка\",\"\")","v":""},{"$f":"IF(G14<H14,\"грешка\",\"\")","v":""},{"$f":"IF(I14<J14,\"грешка\",\"\")","v":""}]

{"sheet":"VI.5.","index":16,"n_rows":18,"n_cols":5,"rows_kept":18,"cut":false,"hidden":false,"merged":[]}
[{"$f":"I.!A1","v":""},"Област:",{"$f":"I.!C1","v":0}]
[{"$f":"I.!A2","v":""},"Лечебно заведение:",{"$f":"I.!C2","v":0}]
[null,"Година:",{"$f":"I.!C3","v":2023}]
[]
[]
[]
[]
[null,"Раздел VІ. Дейност на психиатричните структури"]
[17,"5. Болни, включени в рехабилитация"]
[]
[null,"Вид рехабилитация","Ши-фър","Болнична рехабили-тация","Извънболнична рехабилитация"]
[null,"а","б",1,2]
[null,"Трудотерапия","01"]
[null,"Занимателна терапия","02"]
[null,"Кинезитерапия","03"]
[null,"Музикотерапия","04"]
[null,"Арт-терапия","05"]
[null,"Обучение в социални умения и професионална преквалификация","06"]

{"sheet":"VII.1.","index":17,"n_rows":25,"n_cols":4,"rows_kept":25,"cut":false,"hidden":false,"merged":[]}
[{"$f":"I.!A1","v":""},"Област:",{"$f":"I.!C1","v":0}]
[{"$f":"I.!A2","v":""},"Лечебно заведение:",{"$f":"I.!C2","v":0}]
[null,"Година:",{"$f":"I.!C3","v":2023}]
[]
[]
[]
[]
[null,"Раздел VІІ. Дейност на кожно-венерологичните структури"]
[18,"1. Структурни звена"]
[]
[null,null,"Шиф-ър","Брой"]
[null,"а","б",1]
[null,"Кожни и венерически болести","01"]
[null,"Дерматология","02"]
[null,"от тях: Дерматоалергология","03"]
[null,"Детска дерматология","04"]
[null,"Дерматологична козметика","05"]
[null,"Обща дерматология","06"]
[null,"Венерология","07"]
[null,"Лазертерапия в дерматологията","08"]
[null,"Други","09"]
[]
["ВЕРТИКАЛЕН КОНТРОЛ:"]
[null,"ш.01=  ш.02+ш.07+ш.08+ш.09",null,{"$f":"IF(D13=D14+D19+D20+D21,\"\",\"грешка\")","v":""}]
[null,"ш.02³  на сумата от ш.03 до ш.06",null,{"$f":"IF(D14<SUM(D15:D18),\"грешка\",\"\")","v":""}]

{"sheet":"VII.2.","index":18,"n_rows":25,"n_cols":11,"rows_kept":25,"cut":false,"hidden":false,"merged":[[10,1,11,1],[10,2,11,2],[10,3,11,3],[10,4,10,8],[10,10,11,10]]}
[{"$f":"I.!A1","v":""},"Област:",{"$f":"I.!C1","v":0}]
[{"$f":"I.!A2","v":""},"Лечебно заведение:",{"$f":"I.!C2","v":0}]
[null,"Година:",{"$f":"I.!C3","v":2023}]
[]
[]
[]
[]
[null,"Раздел VІІ. Дейност на кожно-венерологичните структури"]
[19,"2. Профилактична дейност"]
[null,null,null,null,null,null,null,null,null,null,"ХОРИЗОНТАЛЕН КОНТРОЛ:"]
[null,null,"Ши-фър","Прегледа-ни лица","Открити заболявания",null,null,null,null,null,"ако в колони от 2 до 6  има данни, то и в к.1 трябва да има данни"]
[null,null,null,null,"сифилис","гоно-рея","краста","микотични заболя-вания","други"]
[null,"а","б",1,2,3,4,5,6]
[null,"Всичко (ш.02 до 06)","01",null,null,null,null,null,null,null,{"$f":"IF(SUM(E14:I14)>0,IF(D14=0,\"грешка\",\"\"),\"\")","v":""}]
[null,"Работещи в детски заведения","02",null,null,null,null,null,null,null,{"$f":"IF(SUM(E15:I15)>0,IF(D15=0,\"грешка\",\"\"),\"\")","v":""}]
[null,"Работещи в хранителни заведения","03",null,null,null,null,null,null,null,""]
[null,"Деца в детски заведения","04",null,null,null,null,null,null,null,""]
[null,"Ученици в училища","05",null,null,null,null,null,null,null,""]
[null,"Други","06",null,null,null,null,null,null,null,""]
[]
["ВЕРТИКАЛЕН КОНТРОЛ:"]
[null,"ш.01= на сумата от ш.02 до ш.06",null,{"$f":"IF(D14=SUM(D15:D19),\"\",\"грешка\")","v":""},{"$f":"IF(E14=SUM(E15:E19),\"\",\"грешка\")","v":""},"","","",""]
[]
["КОНТРОЛ МЕЖДУ табл.2, раздел VІІ и табл.1, раздел ІІІ:"]
[null,"ш.01,к.1, р.VII, т.2 £ ш.13, к.3, р.ІІІ, т.1",null,{"$f":"IF(D14>III.1.!F27,\"грешка\",\"\")","v":""}]

{"sheet":"VIII.1.","index":19,"n_rows":28,"n_cols":4,"rows_kept":28,"cut":false,"hidden":false,"merged":[]}
[{"$f":"I.!A1","v":""},"Област:",{"$f":"I.!C1","v":0}]
[{"$f":"I.!A2","v":""},"Лечебно заведение:",{"$f":"I.!C2","v":0}]
[null,"Година:",{"$f":"I.!C3","v":2023}]
[]
[]
[]
[]
[null,"Раздел VІIІ. Дейност на онкологичните структури"]
[20,"1. Структурни звена"]
[]
[null,null,"Шиф-ър","Брой"]
[null,"а","б",1]
[null,"Вътрешни болести","01"]
[null,"Гинекология","02"]
[null,"Клинична хематология","03"]
[null,"Кожни и венерически болести","04"]
[null,"Лъчелечение ","05"]
[null,"Медицинска онкология","06"]
[null,"Нуклеарна медицина ","07"]
[null,"Образна диагностика","08"]
[null,"Ушно-носно-гърлени болести","09"]
[null,"Хирургия","10"]
[null,"Други","11"]
[null,"Лаборатории","12"]
[null,"Клинична ","13"]
[]
["ВЕРТИКАЛЕН КОНТРОЛ:"]
[null,"ш.12³ ш.13",null,{"$f":"IF(D24<D25,\"грешка\",\"\")","v":""}]

{"sheet":"IX.1.","index":20,"n_rows":19,"n_cols":4,"rows_kept":19,"cut":false,"hidden":false,"merged":[]}
[{"$f":"I.!A1","v":""},"Област:",{"$f":"I.!C1","v":0}]
[{"$f":"I.!A2","v":""},"Лечебно заведение:",{"$f":"I.!C2","v":0}]
[null,"Година:",{"$f":"I.!C3","v":2023}]
[]
[]
[]
[]
[null,"Раздел IX. Дейност на пневмофтизиатричните структури"]
[21,"1. Структурни звена"]
[]
[null,null,"Шиф-ър","Брой"]
[null,"а","б",1]
[null,"Пневмология и фтизиатрия","01"]
[null,"Хронични неспецифични белодробни заболявания","02"]
[null,"Функционална диагностика","03"]
[null,"Други","04"]
[]
["ВЕРТИКАЛЕН КОНТРОЛ:"]
[null,"ш.01³ ш.02",null,{"$f":"IF(D13<D14,\"грешка\",\"\")","v":""}]

{"sheet":"IX.2.","index":21,"n_rows":22,"n_cols":8,"rows_kept":22,"cut":false,"hidden":false,"merged":[[10,1,11,1],[10,2,11,2],[10,3,11,3],[10,4,10,5],[10,7,11,7]]}
[{"$f":"I.!A1","v":""},"Област:",{"$f":"I.!C1","v":0}]
[{"$f":"I.!A2","v":""},"Лечебно заведение:",{"$f":"I.!C2","v":0}]
[null,"Година:",{"$f":"I.!C3","v":2023}]
[]
[]
[]
[]
[null,"Раздел IX. Дейност на пневмофтизиатричните структури"]
[22,"2. Масови проф. прегледи на населението за туберкулоза и хрон. неспец. белодр. заб."]
[null,null,null,null,null,null,null,"ХОРИЗОНТАЛЕН КОНТРОЛ:"]
[null,null,"Ши-фър","Всичко","В това число:",null,null,"к.1= к.2+к.3 "]
[null,null,null,null," Възрастни (18 и повече год.)"," Деца до 17 г."]
[null,"а","б",1,2,3]
[null,"Изследвани лица","01",null,null,null,null,{"$f":"IF(D14=E14+F14,\"\",\"грешка\")","v":""}]
[null,"от тях открити болни, неизвестни на лечебното заведение (ш.03+04+05) ","02",null,null,null,null,{"$f":"IF(D15=E15+F15,\"\",\"грешка\")","v":""}]
[null,"с активна туберкулоза ","03",null,null,null,null,""]
[null,"с ХНБЗ","04",null,null,null,null,""]
[null,"с други заболявания","05",null,null,null,null,""]
[]
["ВЕРТИКАЛЕН КОНТРОЛ:"]
[null,"ш.01≥ ш.02",null,{"$f":"IF(D14<D15,\"грешка\",\"\")","v":""},{"$f":"IF(E14<E15,\"грешка\",\"\")","v":""},{"$f":"IF(F14<F15,\"грешка\",\"\")","v":""}]
[null,"ш.02= на сумата от ш.03 до ш.05",null,{"$f":"IF(D15<>SUM(D16:D18),\"грешка\",\"\")","v":""},{"$f":"IF(E15<>SUM(E16:E18),\"грешка\",\"\")","v":""},{"$f":"IF(F15<>SUM(F16:F18),\"грешка\",\"\")","v":""}]

{"sheet":"X.1.","index":22,"n_rows":65,"n_cols":4,"rows_kept":65,"cut":false,"hidden":false,"merged":[]}
[{"$f":"I.!A1","v":""},"Област:",{"$f":"I.!C1","v":0}]
[{"$f":"I.!A2","v":""},"Лечебно заведение:",{"$f":"I.!C2","v":0}]
[null,"Година:",{"$f":"I.!C3","v":2023}]
[]
[]
[]
[]
[null,"Раздел X. Медицинска апаратура и изследвания"]
[23,"1. Медицинска апаратура"]
[]
[null,null,"Ши-фър","Брой"]
[null,"а","б",1]
[null,"Апарат за роботизирана хирургия","01"]
[null,"SPECT/CT","02"]
[null,"ПЕТ скенер","03"]
[null,"Компютърен томограф","04"]
[null,"Ядрено-магнитен резонанс","05"]
[null,"Ехограф","06"]
[null,"в т.ч.:  3D","07"]
[null,"4D","08"]
[null,"ЕКГ - апарат","09"]
[null,"Спирометър","10"]
[null,"Мамограф","11"]
[null,"Ангиограф","12"]
[null,"в т.ч.: Ангиограф за ендуваскуларно лечение на екстракраниални съдове","13"]
[null,"Ангиограф за ендуваскуларно лечение на интракраниални съдове","14"]
[null,"Електроенцефалограф","15"]
[null,"Електромиограф","16"]
[null,"Ендоскоп","17"]
[null,"Сцинтиграф","18"]
[null,"Рентгенов апарат","19"]
[null,"в т.ч. Дигитален рентгенов апарат","20"]
[null,"Хематологичен анализатор","21"]
[null,"Автоматичен клинико-химичен анализатор","22"]
[null,"Елиза и реанализатор за хормони","23"]
[null,"Кръвно-газов анализатор","24"]
[null,"Наркозен апарат","25"]
[null,"Респиратор","26"]
[null,"Кувьози","27"]
[null,"Кардиомонитор","28"]
[null,"Дефибрилатор","29"]
[null,"Коагулационен лазер","30"]
[null,"Апаратура за микрохирургия","31"]
[null,"Апаратура за диализни структури","32"]
[null,"Лазерен апарат за биостимулация","33"]
[null,"Ултразвуков терапевтичен апарат","34"]
[null,"Ултразвуков терапевтичен литотриптер","35"]
[null,"Апарат за нискочестотни токове","36"]
[null,"Апарат за високочестотни токове","37"]
[null,"Телегаматерапевтични уредби","38"]
[null,"Линеен ускорител","39"]
[null,"в т.ч. с възможности за модулиран интензитет","40"]
[null,"Апарат за брахитерапия","41"]
[null,"Гама камери","42"]
[null,"Апарат за рентгенова терапия","43"]
[null,"Електрохирургична апаратура","44"]
[null,"Клинитронови легла","45"]
[null,"Стоматологични единици","46"]
[null,"Други","47"]
[]
["ВЕРТИКАЛЕН КОНТРОЛ:"]
[null,"ш.06 і ш.07+ш.08 ",null,{"$f":"IF(D18<SUM(D19:D20),\"грешка\",\"\")","v":""}]
[null,"ш.12 і ш.13+ш.14 ",null,{"$f":"IF(D24<SUM(D25:D26),\"грешка\",\"\")","v":""}]
[null,"ш.19 і ш.20",null,{"$f":"IF(D31<D32,\"грешка\",\"\")","v":""}]
[null,"ш.39 і ш.40",null,{"$f":"IF(D51<D52,\"грешка\",\"\")","v":""}]

{"sheet":"X.2.","index":23,"n_rows":37,"n_cols":4,"rows_kept":37,"cut":false,"hidden":false,"merged":[]}
[{"$f":"I.!A1","v":""},"Област:",{"$f":"I.!C1","v":0}]
[{"$f":"I.!A2","v":""},"Лечебно заведение:",{"$f":"I.!C2","v":0}]
[null,"Година:",{"$f":"I.!C3","v":2023}]
[]
[]
[]
[]
[null,"Раздел X. Медицинска апаратура и изследвания"]
[24,"2. Извършени изследвания"]
[]
[null,null,"Ши-фър","Брой изследвания"]
[null,"а","б",1]
[null,"ПЕТ скенер","01"]
[null,"Ядрено-магнитен резонанс","02"]
[null,"Ехографии","03"]
[null,"ЕКГ","04"]
[null,"ФИД","05"]
[null,"ЕЕГ","06"]
[null,"ЕМГ","07"]
[null,"Ендоскопии","08"]
[null,"в т.ч.: бронхоскопии","09"]
[null,"гастроскопии","10"]
[null,"колоноскопии","11"]
[null,"ректоскопии","12"]
[null,"цистоскопии","13"]
[null,"Сцинтиграфии","14"]
[null,"Рентгенови изследвания и процедури ","15"]
[null,"в т.ч.: компютърни томографии","16"]
[null,"Лабораторни изследвания","17"]
[null,"в т.ч.:  клинико-лабораторни изследвания","18"]
[null,"PCR за SARS-CoV-2","19"]
[null,"Бърз антигенен тест","20"]
[]
["ВЕРТИКАЛЕН КОНТРОЛ:"]
[null,"ш.08 і на сумата от ш.09 до ш.13",null,{"$f":"IF(D20<SUM(D21:D25),\"грешка\",\"\")","v":""}]
[null,"ш.15 і ш.16",null,{"$f":"IF(D27<D28,\"грешка\",\"\")","v":""}]
[null,"ш.17 і ш.18+ш.19+ш.20",null,{"$f":"IF(D29<SUM(D30:D32),\"грешка\",\"\")","v":""}]

{"sheet":"XI.","index":24,"n_rows":23,"n_cols":4,"rows_kept":23,"cut":false,"hidden":false,"merged":[]}
[{"$f":"I.!A1","v":""},"Област:",{"$f":"I.!C1","v":0}]
[{"$f":"I.!A2","v":""},"Лечебно заведение:",{"$f":"I.!C2","v":0}]
[null,"Година:",{"$f":"I.!C3","v":2023}]
[]
[]
[]
[]
[null,"Раздел XІ."]
[25,"Физиотерапевтична дейност"]
[]
[null,null,"Ши-фър","Брой процедури"]
[null,"а","б",1]
[null,"Кинезитерапия","01"]
[null,"Масажи","02"]
[null,"Лазертерапия","03"]
[null,"Инхалационна терапия","04"]
[null,"Електролечение","05"]
[null,"Светлолечение","06"]
[null,"Термотерапия","07"]
[null,"Хидротерапия","08"]
[null,"Аерозолотерапия","09"]
[null,"Рефлексотерапия","10"]
[null,"Други","11"]

{"sheet":"XII.","index":25,"n_rows":35,"n_cols":7,"rows_kept":35,"cut":false,"hidden":false,"merged":[[32,2,32,4],[32,6,32,8],[33,6,33,8],[34,6,34,8],[33,2,33,4],[34,2,34,4]]}
[{"$f":"I.!A1","v":""},"Област:",{"$f":"I.!C1","v":0}]
[{"$f":"I.!A2","v":""},"Лечебно заведение:",{"$f":"I.!C2","v":0}]
[null,"Година:",{"$f":"I.!C3","v":2023}]
[]
[]
[]
[]
[null,"Раздел XІІ."]
[26,"Tранспорт на лечебното заведение"]
[null,null,null,null,null,null,"ХОРИЗОНТАЛЕН КОНТРОЛ:"]
[null,null,"Ши-фър","Всичко","в т.ч. в движение",null,"к.1і к.2 "]
[null,"а","б",1,2]
[null,"Санитарни моторни превозни средства в края на годината (ш.02 до 07)","01",null,null,null,{"$f":"IF(D13<E13,\"грешка\",\"\")","v":""}]
[null,"линейки","02",null,null,null,""]
[null,"леки коли","03",null,null,null,""]
[null,"лекотоварни","04",null,null,null,""]
[null,"товарни","05",null,null,null,""]
[null,"микробуси","06",null,null,null,""]
[null,"други","07",null,null,null,""]
[null,null,null,null,null,null,""]
["ВЕРТИКАЛЕН КОНТРОЛ:"]
[null,"ш.01= на сумата от ш.02 до ш.07",null,{"$f":"IF(D13=SUM(D14:D19),\"\",\"грешка\")","v":""},{"$f":"IF(E13=SUM(E14:E19),\"\",\"грешка\")","v":""}]
[]
[]
[]
[]
[]
[]
[]
[]
[]
[null,"Данни за лицето попълнило е-формуляра:"]
[null,"Име и фамилия",null,null,null,null,{"$f":"IF(C33=\"\",\"попълни име и фамилия\",\"\")","v":"попълни име и фамилия"}]
[null,"телефон",null,null,null,null,{"$f":"IF(C34=\"\",\"попълни телефон\",\"\")","v":"попълни телефон"}]
[null,"е-mail",null,null,null,null,{"$f":"IF(C35=\"\",\"попълни e-mail\",\"\")","v":"попълни e-mail"}]

{"sheet":"obl","index":26,"n_rows":28,"n_cols":2,"rows_kept":28,"cut":false,"hidden":true,"merged":[]}
["01 Благоевград          ","01"]
["02 Бургас               ","02"]
["03 Варна                ","03"]
["04 Велико Търново       ","04"]
["05 Видин                ","05"]
["06 Враца                ","06"]
["07 Габрово              ","07"]
["08 Добрич               ","08"]
["09 Кърджали             ","09"]
["10 Кюстендил            ","10"]
["11 Ловеч                ","11"]
["12 Монтана              ","12"]
["13 Пазарджик            ","13"]
["14 Перник               ","14"]
["15 Плевен               ","15"]
["16 Пловдив              ","16"]
["17 Разград              ","17"]
["18 Русе                 ","18"]
["19 Силистра             ","19"]
["20 Сливен               ","20"]
["21 Смолян               ","21"]
["22 София (столица)      ","22"]
["23 София                ","23"]
["24 Стара Загора         ","24"]
["25 Търговище            ","25"]
["26 Хасково              ","26"]
["27 Шумен                ","27"]
["28 Ямбол                ","28"]

{"sheet":"zav","index":27,"n_rows":448,"n_cols":3,"rows_kept":448,"cut":false,"hidden":true,"merged":[]}
["01","01 Индивидуални практики за ПМП - Благоевград","111"]
["01","01 Индивидуални практики за ПДП - Благоевград","122"]
["01","01 Групови практики за ПМП - Благоевград","131"]
["01","01 Групови практики за ПДП - Благоевград","142"]
["01","01 Индивидуални практики за СМП - Благоевград","211"]
["01","01 Индивидуални практики за СДП - Благоевград","222"]
["01","01 Групови практики за СМП - Благоевград","231"]
["01","01 Групови практики за СДП - Благоевград","242"]
["01","01 Медицински центрове - Благоевград","251"]
["01","01 Дентални центрове - Благоевград","262"]
["01","01 Медико-дентални центрове - Благоевград","270"]
["01","01 Диагностично-консултативни центрове - Благоевград","281"]
["01","01 Самостоятелни медико-диагностични лаборатории - Благоевград","293"]
["01","01 Самостоятелни медико-технически лаборатории - Благоевград","294"]
["01","01 Индивидуални практики за здравни грижи - Благоевград","195"]
["01","01 Групови практики за здравни грижи - Благоевград","295"]
["02","02 Индивидуални практики за ПМП - Бургас","111"]
["02","02 Индивидуални практики за ПДП - Бургас","122"]
["02","02 Групови практики за ПМП - Бургас","131"]
["02","02 Групови практики за ПДП - Бургас","142"]
["02","02 Индивидуални практики за СМП - Бургас","211"]
["02","02 Индивидуални практики за СДП - Бургас","222"]
["02","02 Групови практики за СМП - Бургас","231"]
["02","02 Групови практики за СДП - Бургас","242"]
["02","02 Медицински центрове - Бургас","251"]
["02","02 Дентални центрове - Бургас","262"]
["02","02 Медико-дентални центрове - Бургас","270"]
["02","02 Диагностично-консултативни центрове - Бургас","281"]
["02","02 Самостоятелни медико-диагностични лаборатории - Бургас","293"]
["02","02 Самостоятелни медико-технически лаборатории - Бургас","294"]
["02","02 Индивидуални практики за здравни грижи - Бургас","195"]
["02","02 Групови практики за здравни грижи - Бургас","295"]
["03","03 Индивидуални практики за ПМП - Варна","111"]
["03","03 Индивидуални практики за ПДП - Варна","122"]
["03","03 Групови практики за ПМП - Варна","131"]
["03","03 Групови практики за ПДП - Варна","142"]
["03","03 Индивидуални практики за СМП - Варна","211"]
["03","03 Индивидуални практики за СДП - Варна","222"]
["03","03 Групови практики за СМП - Варна","231"]
["03","03 Групови практики за СДП - Варна","242"]
["03","03 Медицински центрове - Варна","251"]
["03","03 Дентални центрове - Варна","262"]
["03","03 Медико-дентални центрове - Варна","270"]
["03","03 Диагностично-консултативни центрове - Варна","281"]
["03","03 Самостоятелни медико-диагностични лаборатории - Варна","293"]
["03","03 Самостоятелни медико-технически лаборатории - Варна","294"]
["03","03 Индивидуални практики за здравни грижи - Варна","195"]
["03","03 Групови практики за здравни грижи - Варна","295"]
["04","04 Индивидуални практики за ПМП - Велико Търново","111"]
["04","04 Индивидуални практики за ПДП - Велико Търново","122"]
["04","04 Групови практики за ПМП - Велико Търново","131"]
["04","04 Групови практики за ПДП - Велико Търново","142"]
["04","04 Индивидуални практики за СМП - Велико Търново","211"]
["04","04 Индивидуални практики за СДП - Велико Търново","222"]
["04","04 Групови практики за СМП - Велико Търново","231"]
["04","04 Групови практики за СДП - Велико Търново","242"]
["04","04 Медицински центрове - Велико Търново","251"]
["04","04 Дентални центрове - Велико Търново","262"]
["04","04 Медико-дентални центрове - Велико Търново","270"]
["04","04 Диагностично-консултативни центрове - Велико Търново","281"]
["04","04 Самостоятелни медико-диагностични лаборатории - Велико Търново","293"]
["04","04 Самостоятелни медико-технически лаборатории - Велико Търново","294"]
["04","04 Индивидуални практики за здравни грижи - Велико Търново","195"]
["04","04 Групови практики за здравни грижи - Велико Търново","295"]
["05","05 Индивидуални практики за ПМП - Видин","111"]
["05","05 Индивидуални практики за ПДП - Видин","122"]
["05","05 Групови практики за ПМП - Видин","131"]
["05","05 Групови практики за ПДП - Видин","142"]
["05","05 Индивидуални практики за СМП - Видин","211"]
["05","05 Индивидуални практики за СДП - Видин","222"]
["05","05 Групови практики за СМП - Видин","231"]
["05","05 Групови практики за СДП - Видин","242"]
["05","05 Медицински центрове - Видин","251"]
["05","05 Дентални центрове - Видин","262"]
["05","05 Медико-дентални центрове - Видин","270"]
["05","05 Диагностично-консултативни центрове - Видин","281"]
["05","05 Самостоятелни медико-диагностични лаборатории - Видин","293"]
["05","05 Самостоятелни медико-технически лаборатории - Видин","294"]
["05","05 Индивидуални практики за здравни грижи - Видин","195"]
["05","05 Групови практики за здравни грижи - Видин","295"]
["06","06 Индивидуални практики за ПМП - Враца","111"]
["06","06 Индивидуални практики за ПДП - Враца","122"]
["06","06 Групови практики за ПМП - Враца","131"]
["06","06 Групови практики за ПДП - Враца","142"]
["06","06 Индивидуални практики за СМП - Враца","211"]
["06","06 Индивидуални практики за СДП - Враца","222"]
["06","06 Групови практики за СМП - Враца","231"]
["06","06 Групови практики за СДП - Враца","242"]
["06","06 Медицински центрове - Враца","251"]
["06","06 Дентални центрове - Враца","262"]
["06","06 Медико-дентални центрове - Враца","270"]
["06","06 Диагностично-консултативни центрове - Враца","281"]
["06","06 Самостоятелни медико-диагностични лаборатории - Враца","293"]
["06","06 Самостоятелни медико-технически лаборатории - Враца","294"]
["06","06 Индивидуални практики за здравни грижи - Враца","195"]
["06","06 Групови практики за здравни грижи - Враца","295"]
["07","07 Индивидуални практики за ПМП - Габрово","111"]
["07","07 Индивидуални практики за ПДП - Габрово","122"]
["07","07 Групови практики за ПМП - Габрово","131"]
["07","07 Групови практики за ПДП - Габрово","142"]
["07","07 Индивидуални практики за СМП - Габрово","211"]
["07","07 Индивидуални практики за СДП - Габрово","222"]
["07","07 Групови практики за СМП - Габрово","231"]
["07","07 Групови практики за СДП - Габрово","242"]
["07","07 Медицински центрове - Габрово","251"]
["07","07 Дентални центрове - Габрово","262"]
["07","07 Медико-дентални центрове - Габрово","270"]
["07","07 Диагностично-консултативни центрове - Габрово","281"]
["07","07 Самостоятелни медико-диагностични лаборатории - Габрово","293"]
["07","07 Самостоятелни медико-технически лаборатории - Габрово","294"]
["07","07 Индивидуални практики за здравни грижи - Габрово","195"]
["07","07 Групови практики за здравни грижи - Габрово","295"]
["08","08 Индивидуални практики за ПМП - Добрич","111"]
["08","08 Индивидуални практики за ПДП - Добрич","122"]
["08","08 Групови практики за ПМП - Добрич","131"]
["08","08 Групови практики за ПДП - Добрич","142"]
["08","08 Индивидуални практики за СМП - Добрич","211"]
["08","08 Индивидуални практики за СДП - Добрич","222"]
["08","08 Групови практики за СМП - Добрич","231"]
["08","08 Групови практики за СДП - Добрич","242"]
["08","08 Медицински центрове - Добрич","251"]
["08","08 Дентални центрове - Добрич","262"]
["08","08 Медико-дентални центрове - Добрич","270"]
["08","08 Диагностично-консултативни центрове - Добрич","281"]
["08","08 Самостоятелни медико-диагностични лаборатории - Добрич","293"]
["08","08 Самостоятелни медико-технически лаборатории - Добрич","294"]
["08","08 Индивидуални практики за здравни грижи - Добрич","195"]
["08","08 Групови практики за здравни грижи - Добрич","295"]
["09","09 Индивидуални практики за ПМП - Кърджали","111"]
["09","09 Индивидуални практики за ПДП - Кърджали","122"]
["09","09 Групови практики за ПМП - Кърджали","131"]
["09","09 Групови практики за ПДП - Кърджали","142"]
["09","09 Индивидуални практики за СМП - Кърджали","211"]
["09","09 Индивидуални практики за СДП - Кърджали","222"]
["09","09 Групови практики за СМП - Кърджали","231"]
["09","09 Групови практики за СДП - Кърджали","242"]
["09","09 Медицински центрове - Кърджали","251"]
["09","09 Дентални центрове - Кърджали","262"]
["09","09 Медико-дентални центрове - Кърджали","270"]
["09","09 Диагностично-консултативни центрове - Кърджали","281"]
["09","09 Самостоятелни медико-диагностични лаборатории - Кърджали","293"]
["09","09 Самостоятелни медико-технически лаборатории - Кърджали","294"]
["09","09 Индивидуални практики за здравни грижи - Кърджали","195"]
["09","09 Групови практики за здравни грижи - Кърджали","295"]
["10","10 Индивидуални практики за ПМП - Кюстендил","111"]
[10,"10 Индивидуални практики за ПДП - Кюстендил","122"]
[10,"10 Групови практики за ПМП - Кюстендил","131"]
[10,"10 Групови практики за ПДП - Кюстендил","142"]
[10,"10 Индивидуални практики за СМП - Кюстендил","211"]
[10,"10 Индивидуални практики за СДП - Кюстендил","222"]
[10,"10 Групови практики за СМП - Кюстендил","231"]
[10,"10 Групови практики за СДП - Кюстендил","242"]
[10,"10 Медицински центрове - Кюстендил","251"]
[10,"10 Дентални центрове - Кюстендил","262"]
[10,"10 Медико-дентални центрове - Кюстендил","270"]
[10,"10 Диагностично-консултативни центрове - Кюстендил","281"]
[10,"10 Самостоятелни медико-диагностични лаборатории - Кюстендил","293"]
[10,"10 Самостоятелни медико-технически лаборатории - Кюстендил","294"]
["10","10 Индивидуални практики за здравни грижи - Кюстендил","195"]
["10","10 Групови практики за здравни грижи - Кюстендил","295"]
["11","11 Индивидуални практики за ПМП - Ловеч","111"]
[11,"11 Индивидуални практики за ПДП - Ловеч","122"]
[11,"11 Групови практики за ПМП - Ловеч","131"]
[11,"11 Групови практики за ПДП - Ловеч","142"]
[11,"11 Индивидуални практики за СМП - Ловеч","211"]
[11,"11 Индивидуални практики за СДП - Ловеч","222"]
[11,"11 Групови практики за СМП - Ловеч","231"]
[11,"11 Групови практики за СДП - Ловеч","242"]
[11,"11 Медицински центрове - Ловеч","251"]
[11,"11 Дентални центрове - Ловеч","262"]
[11,"11 Медико-дентални центрове - Ловеч","270"]
[11,"11 Диагностично-консултативни центрове - Ловеч","281"]
[11,"11 Самостоятелни медико-диагностични лаборатории - Ловеч","293"]
[11,"11 Самостоятелни медико-технически лаборатории - Ловеч","294"]
["11","11 Индивидуални практики за здравни грижи - Ловеч","195"]
["11","11 Групови практики за здравни грижи - Ловеч","295"]
[12,"12 Индивидуални практики за ПМП - Монтана","111"]
[12,"12 Индивидуални практики за ПДП - Монтана","122"]
[12,"12 Групови практики за ПМП - Монтана","131"]
[12,"12 Групови практики за ПДП - Монтана","142"]
[12,"12 Индивидуални практики за СМП - Монтана","211"]
[12,"12 Индивидуални практики за СДП - Монтана","222"]
[12,"12 Групови практики за СМП - Монтана","231"]
[12,"12 Групови практики за СДП - Монтана","242"]
[12,"12 Медицински центрове - Монтана","251"]
[12,"12 Дентални центрове - Монтана","262"]
[12,"12 Медико-дентални центрове - Монтана","270"]
[12,"12 Диагностично-консултативни центрове - Монтана","281"]
[12,"12 Самостоятелни медико-диагностични лаборатории - Монтана","293"]
[12,"12 Самостоятелни медико-технически лаборатории - Монтана","294"]
["12","12 Индивидуални практики за здравни грижи - Монтана","195"]
["12","12 Групови практики за здравни грижи - Монтана","295"]
[13,"13 Индивидуални практики за ПМП - Пазарджик","111"]
[13,"13 Индивидуални практики за ПДП - Пазарджик","122"]
[13,"13 Групови практики за ПМП - Пазарджик","131"]
[13,"13 Групови практики за ПДП - Пазарджик","142"]
[13,"13 Индивидуални практики за СМП - Пазарджик","211"]
[13,"13 Индивидуални практики за СДП - Пазарджик","222"]
[13,"13 Групови практики за СМП - Пазарджик","231"]
[13,"13 Групови практики за СДП - Пазарджик","242"]
[13,"13 Медицински центрове - Пазарджик","251"]
[13,"13 Дентални центрове - Пазарджик","262"]
[13,"13 Медико-дентални центрове - Пазарджик","270"]
[13,"13 Диагностично-консултативни центрове - Пазарджик","281"]
[13,"13 Самостоятелни медико-диагностични лаборатории - Пазарджик","293"]
[13,"13 Самостоятелни медико-технически лаборатории - Пазарджик","294"]
["13","13 Индивидуални практики за здравни грижи - Пазарджик","195"]
["13","13 Групови практики за здравни грижи - Пазарджик","295"]
[14,"14 Индивидуални практики за ПМП - Перник","111"]
[14,"14 Индивидуални практики за ПДП - Перник","122"]
[14,"14 Групови практики за ПМП - Перник","131"]
[14,"14 Групови практики за ПДП - Перник","142"]
[14,"14 Индивидуални практики за СМП - Перник","211"]
[14,"14 Индивидуални практики за СДП - Перник","222"]
[14,"14 Групови практики за СМП - Перник","231"]
[14,"14 Групови практики за СДП - Перник","242"]
[14,"14 Медицински центрове - Перник","251"]
[14,"14 Дентални центрове - Перник","262"]
[14,"14 Медико-дентални центрове - Перник","270"]
[14,"14 Диагностично-консултативни центрове - Перник","281"]
[14,"14 Самостоятелни медико-диагностични лаборатории - Перник","293"]
[14,"14 Самостоятелни медико-технически лаборатории - Перник","294"]
["14","14 Индивидуални практики за здравни грижи - Перник","195"]
["14","14 Групови практики за здравни грижи - Перник","295"]
[15,"15 Индивидуални практики за ПМП - Плевен","111"]
[15,"15 Индивидуални практики за ПДП - Плевен","122"]
[15,"15 Групови практики за ПМП - Плевен","131"]
[15,"15 Групови практики за ПДП - Плевен","142"]
[15,"15 Индивидуални практики за СМП - Плевен","211"]
[15,"15 Индивидуални практики за СДП - Плевен","222"]
[15,"15 Групови практики за СМП - Плевен","231"]
[15,"15 Групови практики за СДП - Плевен","242"]
[15,"15 Медицински центрове - Плевен","251"]
[15,"15 Дентални центрове - Плевен","262"]
[15,"15 Медико-дентални центрове - Плевен","270"]
[15,"15 Диагностично-консултативни центрове - Плевен","281"]
[15,"15 Самостоятелни медико-диагностични лаборатории - Плевен","293"]
[15,"15 Самостоятелни медико-технически лаборатории - Плевен","294"]
["15","15 Индивидуални практики за здравни грижи - Плевен","195"]
["15","15 Групови практики за здравни грижи - Плевен","295"]
[16,"16 Индивидуални практики за ПМП - Пловдив","111"]
[16,"16 Индивидуални практики за ПДП - Пловдив","122"]
[16,"16 Групови практики за ПМП - Пловдив","131"]
[16,"16 Групови практики за ПДП - Пловдив","142"]
[16,"16 Индивидуални практики за СМП - Пловдив","211"]
[16,"16 Индивидуални практики за СДП - Пловдив","222"]
[16,"16 Групови практики за СМП - Пловдив","231"]
[16,"16 Групови практики за СДП - Пловдив","242"]
[16,"16 Медицински центрове - Пловдив","251"]
[16,"16 Дентални центрове - Пловдив","262"]
[16,"16 Медико-дентални центрове - Пловдив","270"]
[16,"16 Диагностично-консултативни центрове - Пловдив","281"]
[16,"16 Самостоятелни медико-диагностични лаборатории - Пловдив","293"]
[16,"16 Самостоятелни медико-технически лаборатории - Пловдив","294"]
["16","16 Индивидуални практики за здравни грижи - Пловдив","195"]
["16","16 Групови практики за здравни грижи - Пловдив","295"]
[17,"17 Индивидуални практики за ПМП - Разград","111"]
[17,"17 Индивидуални практики за ПДП - Разград","122"]
[17,"17 Групови практики за ПМП - Разград","131"]
[17,"17 Групови практики за ПДП - Разград","142"]
[17,"17 Индивидуални практики за СМП - Разград","211"]
[17,"17 Индивидуални практики за СДП - Разград","222"]
[17,"17 Групови практики за СМП - Разград","231"]
[17,"17 Групови практики за СДП - Разград","242"]
[17,"17 Медицински центрове - Разград","251"]
[17,"17 Дентални центрове - Разград","262"]
[17,"17 Медико-дентални центрове - Разград","270"]
[17,"17 Диагностично-консултативни центрове - Разград","281"]
[17,"17 Самостоятелни медико-диагностични лаборатории - Разград","293"]
[17,"17 Самостоятелни медико-технически лаборатории - Разград","294"]
["17","17 Индивидуални практики за здравни грижи - Разград","195"]
["17","17 Групови практики за здравни грижи - Разград","295"]
[18,"18 Индивидуални практики за ПМП - Русе","111"]
[18,"18 Индивидуални практики за ПДП - Русе","122"]
[18,"18 Групови практики за ПМП - Русе","131"]
[18,"18 Групови практики за ПДП - Русе","142"]
[18,"18 Индивидуални практики за СМП - Русе","211"]
[18,"18 Индивидуални практики за СДП - Русе","222"]
[18,"18 Групови практики за СМП - Русе","231"]
[18,"18 Групови практики за СДП - Русе","242"]
[18,"18 Медицински центрове - Русе","251"]
[18,"18 Дентални центрове - Русе","262"]
[18,"18 Медико-дентални центрове - Русе","270"]
[18,"18 Диагностично-консултативни центрове - Русе","281"]
[18,"18 Самостоятелни медико-диагностични лаборатории - Русе","293"]
[18,"18 Самостоятелни медико-технически лаборатории - Русе","294"]
["18","18 Индивидуални практики за здравни грижи - Русе","195"]
["18","18 Групови практики за здравни грижи - Русе","295"]
[19,"19 Индивидуални практики за ПМП - Силистра","111"]
[19,"19 Индивидуални практики за ПДП - Силистра","122"]
[19,"19 Групови практики за ПМП - Силистра","131"]
[19,"19 Групови практики за ПДП - Силистра","142"]
[19,"19 Индивидуални практики за СМП - Силистра","211"]
[19,"19 Индивидуални практики за СДП - Силистра","222"]
[19,"19 Групови практики за СМП - Силистра","231"]
[19,"19 Групови практики за СДП - Силистра","242"]
[19,"19 Медицински центрове - Силистра","251"]
[19,"19 Дентални центрове - Силистра","262"]
[19,"19 Медико-дентални центрове - Силистра","270"]
[19,"19 Диагностично-консултативни центрове - Силистра","281"]
[19,"19 Самостоятелни медико-диагностични лаборатории - Силистра","293"]
[19,"19 Самостоятелни медико-технически лаборатории - Силистра","294"]
["19","19 Индивидуални практики за здравни грижи - Силистра","195"]
["19","19 Групови практики за здравни грижи - Силистра","295"]
[20,"20 Индивидуални практики за ПМП - Сливен","111"]
[20,"20 Индивидуални практики за ПДП - Сливен","122"]
[20,"20 Групови практики за ПМП - Сливен","131"]
[20,"20 Групови практики за ПДП - Сливен","142"]
[20,"20 Индивидуални практики за СМП - Сливен","211"]
[20,"20 Индивидуални практики за СДП - Сливен","222"]
[20,"20 Групови практики за СМП - Сливен","231"]
[20,"20 Групови практики за СДП - Сливен","242"]
[20,"20 Медицински центрове - Сливен","251"]
[20,"20 Дентални центрове - Сливен","262"]
[20,"20 Медико-дентални центрове - Сливен","270"]
[20,"20 Диагностично-консултативни центрове - Сливен","281"]
[20,"20 Самостоятелни медико-диагностични лаборатории - Сливен","293"]
[20,"20 Самостоятелни медико-технически лаборатории - Сливен","294"]
["20","20 Индивидуални практики за здравни грижи - Сливен","195"]
["20","20 Групови практики за здравни грижи - Сливен","295"]
[21,"21 Индивидуални практики за ПМП - Смолян","111"]
[21,"21 Индивидуални практики за ПДП - Смолян","122"]
[21,"21 Групови практики за ПМП - Смолян","131"]
[21,"21 Групови практики за ПДП - Смолян","142"]
[21,"21 Индивидуални практики за СМП - Смолян","211"]
[21,"21 Индивидуални практики за СДП - Смолян","222"]
[21,"21 Групови практики за СМП - Смолян","231"]
[21,"21 Групови практики за СДП - Смолян","242"]
[21,"21 Медицински центрове - Смолян","251"]
[21,"21 Дентални центрове - Смолян","262"]
[21,"21 Медико-дентални центрове - Смолян","270"]
[21,"21 Диагностично-консултативни центрове - Смолян","281"]
[21,"21 Самостоятелни медико-диагностични лаборатории - Смолян","293"]
[21,"21 Самостоятелни медико-технически лаборатории - Смолян","294"]
["21","21 Индивидуални практики за здравни грижи - Смолян","195"]
["21","21 Групови практики за здравни грижи - Смолян","295"]
[22,"22 Индивидуални практики за ПМП - София (столица)","111"]
[22,"22 Индивидуални практики за ПДП - София (столица)","122"]
[22,"22 Групови практики за ПМП - София (столица)","131"]
[22,"22 Групови практики за ПДП - София (столица)","142"]
[22,"22 Индивидуални практики за СМП - София (столица)","211"]
[22,"22 Индивидуални практики за СДП - София (столица)","222"]
[22,"22 Групови практики за СМП - София (столица)","231"]
[22,"22 Групови практики за СДП - София (столица)","242"]
[22,"22 Медицински центрове - София (столица)","251"]
[22,"22 Дентални центрове - София (столица)","262"]
[22,"22 Медико-дентални центрове - София (столица)","270"]
[22,"22 Диагностично-консултативни центрове - София (столица)","281"]
[22,"22 Самостоятелни медико-диагностични лаборатории - София (столица)","293"]
[22,"22 Самостоятелни медико-технически лаборатории - София (столица)","294"]
["22","22 Индивидуални практики за здравни грижи - София (столица)","195"]
["22","22 Групови практики за здравни грижи - София (столица)","295"]
[23,"23 Индивидуални практики за ПМП - София","111"]
[23,"23 Индивидуални практики за ПДП - София","122"]
[23,"23 Групови практики за ПМП - София","131"]
[23,"23 Групови практики за ПДП - София","142"]
[23,"23 Индивидуални практики за СМП - София","211"]
[23,"23 Индивидуални практики за СДП - София","222"]
[23,"23 Групови практики за СМП - София","231"]
[23,"23 Групови практики за СДП - София","242"]
[23,"23 Медицински центрове - София","251"]
[23,"23 Дентални центрове - София","262"]
[23,"23 Медико-дентални центрове - София","270"]
[23,"23 Диагностично-консултативни центрове - София","281"]
[23,"23 Самостоятелни медико-диагностични лаборатории - София","293"]
[23,"23 Самостоятелни медико-технически лаборатории - София","294"]
["23","23 Индивидуални практики за здравни грижи - София","195"]
["23","23 Групови практики за здравни грижи - София","295"]
[24,"24 Индивидуални практики за ПМП - Стара Загора","111"]
[24,"24 Индивидуални практики за ПДП - Стара Загора","122"]
[24,"24 Групови практики за ПМП - Стара Загора","131"]
[24,"24 Групови практики за ПДП - Стара Загора","142"]
[24,"24 Индивидуални практики за СМП - Стара Загора","211"]
[24,"24 Индивидуални практики за СДП - Стара Загора","222"]
[24,"24 Групови практики за СМП - Стара Загора","231"]
[24,"24 Групови практики за СДП - Стара Загора","242"]
[24,"24 Медицински центрове - Стара Загора","251"]
[24,"24 Дентални центрове - Стара Загора","262"]
[24,"24 Медико-дентални центрове - Стара Загора","270"]
[24,"24 Диагностично-консултативни центрове - Стара Загора","281"]
[24,"24 Самостоятелни медико-диагностични лаборатории - Стара Загора","293"]
[24,"24 Самостоятелни медико-технически лаборатории - Стара Загора","294"]
["24","24 Индивидуални практики за здравни грижи - Стара Загора","195"]
["24","24 Групови практики за здравни грижи - Стара Загора","295"]
[25,"25 Индивидуални практики за ПМП - Търговище","111"]
[25,"25 Индивидуални практики за ПДП - Търговище","122"]
[25,"25 Групови практики за ПМП - Търговище","131"]
[25,"25 Групови практики за ПДП - Търговище","142"]
[25,"25 Индивидуални практики за СМП - Търговище","211"]
[25,"25 Индивидуални практики за СДП - Търговище","222"]
[25,"25 Групови практики за СМП - Търговище","231"]
[25,"25 Групови практики за СДП - Търговище","242"]
[25,"25 Медицински центрове - Търговище","251"]
[25,"25 Дентални центрове - Търговище","262"]
[25,"25 Медико-дентални центрове - Търговище","270"]
[25,"25 Диагностично-консултативни центрове - Търговище","281"]
[25,"25 Самостоятелни медико-диагностични лаборатории - Търговище","293"]
[25,"25 Самостоятелни медико-технически лаборатории - Търговище","294"]
["25","25 Индивидуални практики за здравни грижи - Търговище","195"]
["25","25 Групови практики за здравни грижи - Търговище","295"]
[26,"26 Индивидуални практики за ПМП - Хасково","111"]
[26,"26 Индивидуални практики за ПДП - Хасково","122"]
[26,"26 Групови практики за ПМП - Хасково","131"]
[26,"26 Групови практики за ПДП - Хасково","142"]
[26,"26 Индивидуални практики за СМП - Хасково","211"]
[26,"26 Индивидуални практики за СДП - Хасково","222"]
[26,"26 Групови практики за СМП - Хасково","231"]
[26,"26 Групови практики за СДП - Хасково","242"]
[26,"26 Медицински центрове - Хасково","251"]
[26,"26 Дентални центрове - Хасково","262"]
[26,"26 Медико-дентални центрове - Хасково","270"]
[26,"26 Диагностично-консултативни центрове - Хасково","281"]
[26,"26 Самостоятелни медико-диагностични лаборатории - Хасково","293"]
[26,"26 Самостоятелни медико-технически лаборатории - Хасково","294"]
["26","26 Индивидуални практики за здравни грижи - Хасково","195"]
["26","26 Групови практики за здравни грижи - Хасково","295"]
[27,"27 Индивидуални практики за ПМП - Шумен","111"]
[27,"27 Индивидуални практики за ПДП - Шумен","122"]
[27,"27 Групови практики за ПМП - Шумен","131"]
[27,"27 Групови практики за ПДП - Шумен","142"]
[27,"27 Индивидуални практики за СМП - Шумен","211"]
[27,"27 Индивидуални практики за СДП - Шумен","222"]
[27,"27 Групови практики за СМП - Шумен","231"]
[27,"27 Групови практики за СДП - Шумен","242"]
[27,"27 Медицински центрове - Шумен","251"]
[27,"27 Дентални центрове - Шумен","262"]
[27,"27 Медико-дентални центрове - Шумен","270"]
[27,"27 Диагностично-консултативни центрове - Шумен","281"]
[27,"27 Самостоятелни медико-диагностични лаборатории - Шумен","293"]
[27,"27 Самостоятелни медико-технически лаборатории - Шумен","294"]
["27","27 Индивидуални практики за здравни грижи - Шумен","195"]
["27","27 Групови практики за здравни грижи - Шумен","295"]
[28,"28 Индивидуални практики за ПМП - Ямбол","111"]
[28,"28 Индивидуални практики за ПДП - Ямбол","122"]
[28,"28 Групови практики за ПМП - Ямбол","131"]
[28,"28 Групови практики за ПДП - Ямбол","142"]
[28,"28 Индивидуални практики за СМП - Ямбол","211"]
[28,"28 Индивидуални практики за СДП - Ямбол","222"]
[28,"28 Групови практики за СМП - Ямбол","231"]
[28,"28 Групови практики за СДП - Ямбол","242"]
[28,"28 Медицински центрове - Ямбол","251"]
[28,"28 Дентални центрове - Ямбол","262"]
[28,"28 Медико-дентални центрове - Ямбол","270"]
[28,"28 Диагностично-консултативни центрове - Ямбол","281"]
[28,"28 Самостоятелни медико-диагностични лаборатории - Ямбол","293"]
[28,"28 Самостоятелни медико-технически лаборатории - Ямбол","294"]
["28","28 Индивидуални практики за здравни грижи - Ямбол","195"]
["28","28 Групови практики за здравни грижи - Ямбол","295"]